Body Name,Body,Service Level,Expense Type,Expense Code,Narrative,Date,Transaction Number,Amount,Capital and Revenue,Supplier Name,Supplier ID
South Ribble Borough Council,http://statistics.data.gov.uk/id/local-authority/30UE,Recreation & Sport,Computer Software,4242,Apple iPad mini 64 GB 20.1 cm (7.9``) Wi-Fi 5 (802.11ac) iOS 12 Grey - for Tennis Centre  6 Devices,07/04/2021,0000466265,"2,017.14",Revenue,Abbey Telecoms Limited,0
South Ribble Borough Council,http://statistics.data.gov.uk/id/local-authority/30UE,Recreation & Sport,Computer Software,4242,Leyland Leisure Centre  6 Devices,07/04/2021,0000466265,"2,017.14",Revenue,Abbey Telecoms Limited,0
South Ribble Borough Council,http://statistics.data.gov.uk/id/local-authority/30UE,Recreation & Sport,Computer Software,4242,Bamber Bridge Leisure Centre  5 Devices,07/04/2021,0000466265,"1,680.95",Revenue,Abbey Telecoms Limited,0
South Ribble Borough Council,http://statistics.data.gov.uk/id/local-authority/30UE,Recreation & Sport,Computer Software,4242,Penwortham Leisure Centre  4 Devices,07/04/2021,0000466265,"1,344.76",Revenue,Abbey Telecoms Limited,0
South Ribble Borough Council,http://statistics.data.gov.uk/id/local-authority/30UE,Recreation & Sport,Computer Software,4242,"Leyland Leisure Centre - Apple IPad Pro 11 512GB Wi-Fi Tablet (8th Gen), 30W USB-C Power Adapter, USB-C Digital AV Multi-port Adaptor",09/04/2021,0000466362,"1,029.89",Revenue,Abbey Telecoms Limited,0
South Ribble Borough Council,http://statistics.data.gov.uk/id/local-authority/30UE,Recreation & Sport,Computer Software,4242,"Tennis Centre - Apple IPad Pro 11 512GB Wi-Fi Tablet (8th Gen), 30W USB-C Power Adapter, USB-C Digital AV Multi-port Adaptor",09/04/2021,0000466362,"1,029.89",Revenue,Abbey Telecoms Limited,0
South Ribble Borough Council,http://statistics.data.gov.uk/id/local-authority/30UE,Recreation & Sport,Computer Software,4242,"Penwortham Leisure Centre - Apple IPad Pro 11� Tablet (8th Gen), Power Adapter, Digital AV Multi-port Adaptor, Networking Card Ethernet Adapter",09/04/2021,0000466362,"1,029.89",Revenue,Abbey Telecoms Limited,0
South Ribble Borough Council,http://statistics.data.gov.uk/id/local-authority/30UE,Central Support Services,Reactive Repair & Maintenance,2020,1 x 16 yard skips. As per NAME REDACTED March 2021 Civic Centre,14/04/2021,0000466341,285.00,Revenue,ABLE SKIP HIRE LTD,0
South Ribble Borough Council,http://statistics.data.gov.uk/id/local-authority/30UE,Recreation & Sport,Computer Equipment,4241,"Apple 11inch ipad pro wifi + cellular 128GB, Smart folio keyboard 11`` as per NAME REDACTED request",09/04/2021,0000466352,"1,808.00",Revenue,ACS SYSTEMS UK LTD,0
South Ribble Borough Council,http://statistics.data.gov.uk/id/local-authority/30UE,Capital,Cap Contract Payment,C230,"Fees for the Civil & Structural works at the McKenzie Arms, Bamber Bridge as agreed with NAMES REDACTED",28/04/2021,0000466363,"9,500.00",Revenue,Adept Consulting Engineers Ltd,0
South Ribble Borough Council,http://statistics.data.gov.uk/id/local-authority/30UE,Short Term Creditors,Manual Control,0001,,16/04/2021,0000466798,250.00,Revenue,Age Concern Central Lancashire,0
South Ribble Borough Council,http://statistics.data.gov.uk/id/local-authority/30UE,Local Tax Collection,Bank Charges,4811,post office,14/04/2021,0000466312,605.84,Revenue,ALLPAY LTD,0
South Ribble Borough Council,http://statistics.data.gov.uk/id/local-authority/30UE,Local Tax Collection,Bank Charges,4811,pay point,14/04/2021,0000466312,66.00,Revenue,ALLPAY LTD,0
South Ribble Borough Council,http://statistics.data.gov.uk/id/local-authority/30UE,Local Tax Collection,Bank Charges,4811,web conn,14/04/2021,0000466312,46.00,Revenue,ALLPAY LTD,0
South Ribble Borough Council,http://statistics.data.gov.uk/id/local-authority/30UE,Local Tax Collection,Bank Charges,4811,post office,14/04/2021,0000466313,573.59,Revenue,ALLPAY LTD,0
South Ribble Borough Council,http://statistics.data.gov.uk/id/local-authority/30UE,Local Tax Collection,Bank Charges,4811,pay point,14/04/2021,0000466313,72.00,Revenue,ALLPAY LTD,0
South Ribble Borough Council,http://statistics.data.gov.uk/id/local-authority/30UE,Local Tax Collection,Bank Charges,4811,web conn,14/04/2021,0000466313,46.00,Revenue,ALLPAY LTD,0
South Ribble Borough Council,http://statistics.data.gov.uk/id/local-authority/30UE,Local Tax Collection,Bank Charges,4811,post office,14/04/2021,0000466315,402.57,Revenue,ALLPAY LTD,0
South Ribble Borough Council,http://statistics.data.gov.uk/id/local-authority/30UE,Local Tax Collection,Bank Charges,4811,pay point,14/04/2021,0000466315,60.80,Revenue,ALLPAY LTD,0
South Ribble Borough Council,http://statistics.data.gov.uk/id/local-authority/30UE,Local Tax Collection,Bank Charges,4811,web conn,14/04/2021,0000466315,46.00,Revenue,ALLPAY LTD,0
South Ribble Borough Council,http://statistics.data.gov.uk/id/local-authority/30UE,Capital,Cap Contract Payment,C230,"FORMER MCKENZIE ARMS, BAMBER BRIDGE, Report to be updated based on the low emission strategy/Lancaster City Council methodology",14/04/2021,0000465986,250.00,Revenue,Apex Acoustics Limited,0
South Ribble Borough Council,http://statistics.data.gov.uk/id/local-authority/30UE,Central Support Services,Applications Systems,4248,iConnect Hosted (Additional User) as per quote,23/04/2021,0000466957,275.00,Revenue,APT LTD,0
South Ribble Borough Council,http://statistics.data.gov.uk/id/local-authority/30UE,Capital,Cap Contract Payment,C230,for the delivery to archaeological services to discharge planning conditions for the Worden Hall refurbishment,07/04/2021,0000466197,300.00,Revenue,Archaeological Research Services Ltd,0
South Ribble Borough Council,http://statistics.data.gov.uk/id/local-authority/30UE,Suspended Items,Professional Fees,4510,Professional architectural services in relation to the production of RIBA stage 2 proposal for the Base 2 Leyland,28/04/2021,0000466938,"2,500.00",Revenue,ArkleBoyce Architects Ltd,0
South Ribble Borough Council,http://statistics.data.gov.uk/id/local-authority/30UE,Central Support Services,Lease Car Rental,1131,VIN REDACTED,07/04/2021,0000465904,"3,037.10",Revenue,Arval UK Ltd,0
South Ribble Borough Council,http://statistics.data.gov.uk/id/local-authority/30UE,Central Support Services,Lease Car Rental,1131,vat,07/04/2021,0000465904,263.45,Revenue,Arval UK Ltd,0
South Ribble Borough Council,http://statistics.data.gov.uk/id/local-authority/30UE,Short Term Debtors,Manual Control,0001,-vat,07/04/2021,0000465904,-263.45,Revenue,Arval UK Ltd,0
South Ribble Borough Council,http://statistics.data.gov.uk/id/local-authority/30UE,Capital,Cap Contract Payment,C230,"To carry out conversion works and create 9 self contained flats as tendered at Pearson House, Station Road, Bamber Bridge",09/04/2021,0000466501,"24,850.00",Revenue,ASH BARN CONSTRUCTION LTD,0
South Ribble Borough Council,http://statistics.data.gov.uk/id/local-authority/30UE,Capital,Capital Grant,C570,"DFG WORK TO ADAPT A BATHROOM, BEDROOM AND RAMP AT ADDRESS REDACTED AS PER SRBC PLANS AND QUOTE",28/04/2021,0000467032,"14,602.00",Revenue,ASH BARN CONSTRUCTION LTD,0
South Ribble Borough Council,http://statistics.data.gov.uk/id/local-authority/30UE,Capital,Capital Grant,C570,DFG WORKS TO BEDROOM AND BATHROOM WORK AT ADDRESS REDACTED AS PER QUOTE. LCC ADDITIONAL FUNDING,28/04/2021,0000467031,"5,952.82",Revenue,Bambers Remedial Contractors Ltd,0
South Ribble Borough Council,http://statistics.data.gov.uk/id/local-authority/30UE,Capital,Capital Grant,C570,DFG WORKS TO BEDROOM AND BATHROOM WORK AT ADDRESS REDACTED AS PER QUOTE. DFG AND LCC TO COVER,28/04/2021,0000467034,"16,089.18",Revenue,Bambers Remedial Contractors Ltd,0
South Ribble Borough Council,http://statistics.data.gov.uk/id/local-authority/30UE,Capital,Cap Contract Payment,C230,TREES + PLANTS ON ATTACHED LIST,07/04/2021,0000466291,845.86,Revenue,BANNISTER HALL LANDSCAPE SUPPLIES,0
South Ribble Borough Council,http://statistics.data.gov.uk/id/local-authority/30UE,Surplus or Deficit on Trading,Reactive Repair & Maintenance,2020,Annual Contract 2020/2021 Electrical Testing and Electrical  Installation Test at Moss Side Community Centre,07/04/2021,0000465989,260.00,Revenue,BELEC ELECTRICAL LTD,0
South Ribble Borough Council,http://statistics.data.gov.uk/id/local-authority/30UE,Surplus or Deficit on Trading,Reactive Repair & Maintenance,2020,Extra order to cover the remainder of the sports pavilions to include remedial works for 2020/2021,23/04/2021,0000465992,260.00,Revenue,BELEC ELECTRICAL LTD,0
South Ribble Borough Council,http://statistics.data.gov.uk/id/local-authority/30UE,Central Support Services,External Contractors Charges,4570,Provide new hand dryer and reposition to opposite side of sink unit. Repair 16amp dura socket outlet. Repair fault on bench grinder.,21/04/2021,0000466000,251.00,Revenue,BELEC ELECTRICAL LTD,0
South Ribble Borough Council,http://statistics.data.gov.uk/id/local-authority/30UE,Surplus or Deficit on Trading,Reactive Repair & Maintenance,2020,"Replace led lights main building, install socket external led light and water proof switch Worden Depot.",07/04/2021,0000466004,440.14,Revenue,BELEC ELECTRICAL LTD,0
South Ribble Borough Council,http://statistics.data.gov.uk/id/local-authority/30UE,Surplus or Deficit on Trading,Reactive Repair & Maintenance,2020,Annual Contract 2020/2021 Electrical Testing and Electrical  Installation Test at Higher Walton Community Centre,07/04/2021,0000466005,260.00,Revenue,BELEC ELECTRICAL LTD,0
South Ribble Borough Council,http://statistics.data.gov.uk/id/local-authority/30UE,Economic Development,Reactive Repair & Maintenance,2020,Annual Contract 2020/2021 External Lights/Emergency Lighting Maintenance at Leyland Market,09/04/2021,0000466216,590.00,Revenue,BELEC ELECTRICAL LTD,0
South Ribble Borough Council,http://statistics.data.gov.uk/id/local-authority/30UE,Surplus or Deficit on Trading,Reactive Repair & Maintenance,2020,Extra order to cover the remainder of the sports pavilions to include remedial works  for 2020/2021,14/04/2021,0000466217,260.00,Revenue,BELEC ELECTRICAL LTD,0
South Ribble Borough Council,http://statistics.data.gov.uk/id/local-authority/30UE,Surplus or Deficit on Trading,Reactive Repair & Maintenance,2020,order to cover invoice mislaid or not received by SRBC for Annual Electrical test and inspect the Worden Arts/Marsden Theatre at Worden Park.,07/04/2021,0000466269,450.00,Revenue,BELEC ELECTRICAL LTD,0
South Ribble Borough Council,http://statistics.data.gov.uk/id/local-authority/30UE,Surplus or Deficit on Trading,Reactive Repair & Maintenance,2020,"This is for a de-humidifier to be fitted to ADDRESS REDACTED. 240, this will cover us up to Christmas. As per NAME REDACTED",21/04/2021,0000464060,485.00,Revenue,Brandon Hire Limited,0
South Ribble Borough Council,http://statistics.data.gov.uk/id/local-authority/30UE,Central Support Services,Materials General,4040,DERBY SLIMLINE LITTER BIN WITH ASHTRAY (BLACK & GOLD) - BX45G 2596(W),14/04/2021,0000466346,"2,490.00",Revenue,BROXAP LTD,0
South Ribble Borough Council,http://statistics.data.gov.uk/id/local-authority/30UE,Open Spaces,GM Refurbishment,4657,30 Sheets - 18mm Plywood@25.59 each,14/04/2021,0000466154,522.90,Revenue,C & W BERRY LTD,0
South Ribble Borough Council,http://statistics.data.gov.uk/id/local-authority/30UE,Open Spaces,External Contractors Charges,4570,"Week 8 St Marys grave yard Penwortham - Lowered 93 memorials into the ground and made safe, landscaped around 5 days work in total.",21/04/2021,0000466514,"3,000.00",Revenue,C B Price & Son Ltd,0
South Ribble Borough Council,http://statistics.data.gov.uk/id/local-authority/30UE,Capital,Cap Contract Payment,C230,To carry out urgent works to the unsafe memorials within the closed grave yard at St Mary`s Church Penwortham.,30/04/2021,0000467096,"3,000.00",Revenue,C B Price & Son Ltd,0
South Ribble Borough Council,http://statistics.data.gov.uk/id/local-authority/30UE,Central Support Services,Materials General,4040,1 set filters PO20 ZRV JFC16480,21/04/2021,0000466705,370.14,Revenue,C P DAVIDSON & SONS LTD,0
South Ribble Borough Council,http://statistics.data.gov.uk/id/local-authority/30UE,Central Support Services,Materials General,4040,1 set filters PO20 ZRZ JFC16488,21/04/2021,0000466705,370.14,Revenue,C P DAVIDSON & SONS LTD,0
South Ribble Borough Council,http://statistics.data.gov.uk/id/local-authority/30UE,Central Support Services,Materials General,4040,1 x hydraulic filter kit PO20ZRY JFC16518,28/04/2021,0000467009,370.14,Revenue,C P DAVIDSON & SONS LTD,0
South Ribble Borough Council,http://statistics.data.gov.uk/id/local-authority/30UE,Central Support Services,Operational Equip & Tools,4010,3953 SEBO BS360 ECO UPRIGHT VACUUM,21/04/2021,0000466817,"1,784.86",Revenue,Capital Cleaning (Kent) Ltd,0
South Ribble Borough Council,http://statistics.data.gov.uk/id/local-authority/30UE,Central Support Services,Reactive Repair & Maintenance,2020,"Please attend Civic Centre, Replacement of faulty gas cylinder � ground floor as per quote SWCMSRBC030321 and as per NAME REDACTED",23/04/2021,0000466966,"1,575.48",Revenue,CHUBB LTD,0
South Ribble Borough Council,http://statistics.data.gov.uk/id/local-authority/30UE,Recreation & Sport,Intruder Alarm,2035,2021 / 2022 annual contract for intruder alarm maintenance and monitoring at South RibbleTennis Centre,30/04/2021,0000467208,446.99,Revenue,CHUBB LTD,0
South Ribble Borough Council,http://statistics.data.gov.uk/id/local-authority/30UE,Recreation & Sport,Intruder Alarm,2035,2021 / 2022 annual contract for CCTV maintenance at Bamber Bridge Centre,30/04/2021,0000467217,265.56,Revenue,CHUBB LTD,0
South Ribble Borough Council,http://statistics.data.gov.uk/id/local-authority/30UE,Recreation & Sport,Intruder Alarm,2035,2021 / 2022 annual contract for intruder alarm maintenance and monitoring at Penwortham Leisure Centre,30/04/2021,0000467218,449.48,Revenue,CHUBB LTD,0
South Ribble Borough Council,http://statistics.data.gov.uk/id/local-authority/30UE,Central Support Services,Materials General,4040,"1X FULL FILTER KIT, 1X GEAR BOX OIL FILTER, PO20 ZRZ, JFC16338 (NAME REDACTED)",07/04/2021,0000466300,404.14,Revenue,CICELEY COMMERCIALS LTD,0
South Ribble Borough Council,http://statistics.data.gov.uk/id/local-authority/30UE,Central Support Services,Materials General,4040,1 x full service kit PO20ZRY JFC16518 ,30/04/2021,0000467044,404.14,Revenue,CICELEY COMMERCIALS LTD,0
South Ribble Borough Council,http://statistics.data.gov.uk/id/local-authority/30UE,Central Support Services,Individual Subs Prof. Bodies,1741,MEMBERSHIP SUBSCRIPTION RENEWAL FOR NAME REDACTED REF: 60705 - 1 APRIL 2021 - 31 MARCH 2022,07/04/2021,0000465242,250.00,Revenue,CIIA (CHARTERED INST OF INT AUDITORS),0
South Ribble Borough Council,http://statistics.data.gov.uk/id/local-authority/30UE,Central Support Services,Individual Subs Prof. Bodies,1741,MEMBERSHIP SUBSCRIPTION RENEWAL FOR NAME REDACTED REF: 57279 - 1 APRIL 2021 - 31 MARCH 2022,07/04/2021,0000465243,250.00,Revenue,CIIA (CHARTERED INST OF INT AUDITORS),0
South Ribble Borough Council,http://statistics.data.gov.uk/id/local-authority/30UE,Central Support Services,Individual Subs Prof. Bodies,1741,MEMBERSHIP SUBSCRIPTION RENEWAL FOR NAME REDACTED - REF: 57442 - 1 APRIL 2021 - 31 MARCH 2022,07/04/2021,0000465244,263.00,Revenue,CIIA (CHARTERED INST OF INT AUDITORS),0
South Ribble Borough Council,http://statistics.data.gov.uk/id/local-authority/30UE,Central Support Services,Publications General,4140,CIPFA Publications Subscription - 01 Apr 2021 - 31 Mar 2022,16/04/2021,0000466706,"2,820.00",Revenue,CIPFA BUSINESS LTD,0
South Ribble Borough Council,http://statistics.data.gov.uk/id/local-authority/30UE,Homelessness,Temporary Accommodation,5311,"NAME REDACTED new placement REDACTED wef 24/3/2021, 45/night x 8 nights incl 31/3/21",14/04/2021,0000466208,360.00,Revenue,CLAREMONT HOTEL,0
South Ribble Borough Council,http://statistics.data.gov.uk/id/local-authority/30UE,Homelessness,Contributions to Other Bodies,4730,"NAME REDACTED continued placement REDACTED 24 - 31/3/2021 incl, 45/n x 8 nights",14/04/2021,0000466208,360.00,Revenue,CLAREMONT HOTEL,0
South Ribble Borough Council,http://statistics.data.gov.uk/id/local-authority/30UE,Homelessness,Contributions to Other Bodies,4730,"NAME REDACTED continued placement REDACTED 24 - 31/3/2021 incl, 45/n x 8 nights",14/04/2021,0000466208,360.00,Revenue,CLAREMONT HOTEL,0
South Ribble Borough Council,http://statistics.data.gov.uk/id/local-authority/30UE,Homelessness,Contributions to Other Bodies,4730,"NAME REDACTED continued placement REDACTED 22 - 31/3/2021 incl, 45/night x 10 nights",14/04/2021,0000466208,450.00,Revenue,CLAREMONT HOTEL,0
South Ribble Borough Council,http://statistics.data.gov.uk/id/local-authority/30UE,Homelessness,Contributions to Other Bodies,4730,"NAME REDACTED continued placement REDACTED 24 - 31/3/2021 incl, 45/night x 8 nights",14/04/2021,0000466208,360.00,Revenue,CLAREMONT HOTEL,0
South Ribble Borough Council,http://statistics.data.gov.uk/id/local-authority/30UE,Central Support Services,Franked Post,4292,Mail Services,07/04/2021,0000466191,876.82,Revenue,CRITIQOM,0
South Ribble Borough Council,http://statistics.data.gov.uk/id/local-authority/30UE,Local Tax Collection,Postage General,4291,Postage October to March 2021,14/04/2021,0000466274,669.03,Revenue,CRITIQOM,0
South Ribble Borough Council,http://statistics.data.gov.uk/id/local-authority/30UE,Central Support Services,Franked Post,4292,Mail Services,07/04/2021,0000466275,"2,252.54",Revenue,CRITIQOM,0
South Ribble Borough Council,http://statistics.data.gov.uk/id/local-authority/30UE,Local Tax Collection,Postage General,4291,Postage for EOY March 2021,16/04/2021,0000466691,400.00,Revenue,CRITIQOM,0
South Ribble Borough Council,http://statistics.data.gov.uk/id/local-authority/30UE,Local Tax Collection,Stationery General,4130,Stationery October to March 2021,16/04/2021,0000466692,"2,770.69",Revenue,CRITIQOM,0
South Ribble Borough Council,http://statistics.data.gov.uk/id/local-authority/30UE,Local Tax Collection,Postage General,4291,Postage October to March 2021,16/04/2021,0000466693,790.40,Revenue,CRITIQOM,0
South Ribble Borough Council,http://statistics.data.gov.uk/id/local-authority/30UE,Local Tax Collection,Stationery General,4130,Stationery April - October 2021,16/04/2021,0000466698,254.38,Revenue,CRITIQOM,0
South Ribble Borough Council,http://statistics.data.gov.uk/id/local-authority/30UE,Local Tax Collection,Postage General,4291,Postage April - October 2021,16/04/2021,0000466699,405.73,Revenue,CRITIQOM,0
South Ribble Borough Council,http://statistics.data.gov.uk/id/local-authority/30UE,Local Tax Collection,Postage General,4291,Postage for EOY March 2021,16/04/2021,0000466712,"17,918.47",Revenue,CRITIQOM,0
South Ribble Borough Council,http://statistics.data.gov.uk/id/local-authority/30UE,Local Tax Collection,Postage General,4291,Postage April - October 2021,28/04/2021,0000466979,401.46,Revenue,CRITIQOM,0
South Ribble Borough Council,http://statistics.data.gov.uk/id/local-authority/30UE,Capital,Capital Grant,C570,"DFG WORK TO ADAPT A BATHROOM AT ADDRESS REDACTED AS PER QUOTE, NAME REDACTED HAS A CONTRIBUTION",21/04/2021,0000466803,"3,569.12",Revenue,Croston Plumbing & Heating Ltd,0
South Ribble Borough Council,http://statistics.data.gov.uk/id/local-authority/30UE,Recreation & Sport,Materials General,4040,3 x JBL Charge4 Bluetooth Speaker @ 82.50 each 3 x Cable Audio Stereo Mini Jack @ 3.21,16/04/2021,0000466277,257.13,Revenue,Currys PC World Business,0
South Ribble Borough Council,http://statistics.data.gov.uk/id/local-authority/30UE,Short Term Debtors,Amount Paid,0030,CYCLESCHEME PACKAGE FOR NAME REDACTED - CERTIFICATE NUMBER REDACTED,21/04/2021,0000466542,750.00,Revenue,CYCLESCHEME CO  UK,0
South Ribble Borough Council,http://statistics.data.gov.uk/id/local-authority/30UE,Central Support Services,Legal,4821,PROFESSIONAL SERVICES IN RELATION TO AN EMPLOYMENT TRIBUNAL MATTER.,09/04/2021,0000466529,700.80,Revenue,DAC BEACHCROFT LLP,0
South Ribble Borough Council,http://statistics.data.gov.uk/id/local-authority/30UE,Central Support Services,Legal,4821,PROFESSIONAL SERVICES IN RELATION TO THE CITY DEAL,16/04/2021,0000466735,"1,521.00",Revenue,DAC BEACHCROFT LLP,0
South Ribble Borough Council,http://statistics.data.gov.uk/id/local-authority/30UE,Central Support Services,Reactive Repair & Maintenance,2020,"Annual Contract for maintenance 2020/2021 of 1 x  McSmart 240cr Industrial Water Chiller, 1 x McQuay Air Handling Unit as per 5th May 2020",21/04/2021,0000466783,653.25,Revenue,DAIKIN APPLIED SERVICE,0
South Ribble Borough Council,http://statistics.data.gov.uk/id/local-authority/30UE,Central Support Services,Materials General,4040,"1 drop link, 1c hose clamp, 1 fan belt, 4 anti roll bar bushes VIN REDACTED JFC16312",14/04/2021,0000465277,308.96,Revenue,DENNIS EAGLE LTD,0
South Ribble Borough Council,http://statistics.data.gov.uk/id/local-authority/30UE,Central Support Services,Materials General,4040,8 x SLIDE BLOCKS - VO65KRF - JFC16312,23/04/2021,0000465311,341.62,Revenue,DENNIS EAGLE LTD,0
South Ribble Borough Council,http://statistics.data.gov.uk/id/local-authority/30UE,Central Support Services,Materials General,4040,WIRING LOOM - VO65KPX - JFC16347,14/04/2021,0000466545,264.72,Revenue,DENNIS EAGLE LTD,0
South Ribble Borough Council,http://statistics.data.gov.uk/id/local-authority/30UE,Corporate Management,Refunded Income,485R,Business Grant Recovery 2020 - BGR0250,09/04/2021,0000466548,"750,530.00",Revenue,Dept for Business Energy & Ind. Strategy (BEIS),0
South Ribble Borough Council,http://statistics.data.gov.uk/id/local-authority/30UE,Democratic Represent and  Mgnt,Corp Subs to Professional Bodies,4720,ANNUAL MEMBERSHIP SUBSCRIPTION RENEWAL FOR 2021/2022,30/04/2021,0000467102,"1,662.00",Revenue,District Councils` Network,0
South Ribble Borough Council,http://statistics.data.gov.uk/id/local-authority/30UE,Development Control,Refunded Income,485R,Refund of planning application,23/04/2021,0000466958,462.00,Revenue,NAME REDACTED,0
South Ribble Borough Council,http://statistics.data.gov.uk/id/local-authority/30UE,Open Spaces,GM Refurbishment,4657,"1 x Ranger Tri Table, standard type with galvanised steel work",14/04/2021,0000464975,898.00,Revenue,EARTH ANCHORS LTD,0
South Ribble Borough Council,http://statistics.data.gov.uk/id/local-authority/30UE,Open Spaces,GM Refurbishment,4657,"2 x Ranger Tri Table, mobility type with galvanised steel work @ 898.00",14/04/2021,0000464975,"1,796.00",Revenue,EARTH ANCHORS LTD,0
South Ribble Borough Council,http://statistics.data.gov.uk/id/local-authority/30UE,Open Spaces,GM Refurbishment,4657,"2 x Forest Saver Steel Framed Seat, 1800mm long, with galvanised steel work @ 349.00",14/04/2021,0000464975,698.00,Revenue,EARTH ANCHORS LTD,0
South Ribble Borough Council,http://statistics.data.gov.uk/id/local-authority/30UE,Open Spaces,GM Refurbishment,4657,"1 x Forest Saver steel framed seat, 1800mm steel support frames finished in green to RAL6005 @ 349.00",14/04/2021,0000464975,349.00,Revenue,EARTH ANCHORS LTD,0
South Ribble Borough Council,http://statistics.data.gov.uk/id/local-authority/30UE,Open Spaces,Commemorative Features,4019,"1 x Forest Saver steel framed seat, 1800mm steel support frames finished in green to RAL6005 @ 349.00",14/04/2021,0000464975,349.00,Revenue,EARTH ANCHORS LTD,0
South Ribble Borough Council,http://statistics.data.gov.uk/id/local-authority/30UE,Open Spaces,GM Refurbishment,4657,Delivery charge,14/04/2021,0000464975,98.00,Revenue,EARTH ANCHORS LTD,0
South Ribble Borough Council,http://statistics.data.gov.uk/id/local-authority/30UE,Central Support Services,Computer Maintenance,4211,Yearly Jaltest CV Updates Licence 14.6.21 -13.6.22,16/04/2021,0000466505,745.00,Revenue,Eclipse Automotive Technology Ltd,0
South Ribble Borough Council,http://statistics.data.gov.uk/id/local-authority/30UE,Central Support Services,Computer Maintenance,4211,Yearly Jaltest Road Sweeper Updates Licence Serial Number REDACTED 14.6.21 - 13.6.22,16/04/2021,0000466505,205.00,Revenue,Eclipse Automotive Technology Ltd,0
South Ribble Borough Council,http://statistics.data.gov.uk/id/local-authority/30UE,Central Support Services,Computer Maintenance,4211,Eclipse Vehicle Diagnostics and IT Support 14.6.21 -13.6.22,16/04/2021,0000466505,345.00,Revenue,Eclipse Automotive Technology Ltd,0
South Ribble Borough Council,http://statistics.data.gov.uk/id/local-authority/30UE,Capital,Cap Contract Payment,C230,For the provision of passivhaus design services to the McKenzie arms Project,14/04/2021,0000466367,"8,320.00",Revenue,Eco Design Consultants,0
South Ribble Borough Council,http://statistics.data.gov.uk/id/local-authority/30UE,Central Support Services,Telecomms - Mobile,4260,01 Apr 2021,23/04/2021,0000466517,"4,258.03",Revenue,EE Ltd,0
South Ribble Borough Council,http://statistics.data.gov.uk/id/local-authority/30UE,Waste Collection,Waste Permits,5110,waste trans,21/04/2021,0000466704,"1,230.25",Revenue,ENVIRONMENT AGENCY,0
South Ribble Borough Council,http://statistics.data.gov.uk/id/local-authority/30UE,Capital,Cap Contract Payment,C230,For the provision of M& E Services Design and Consultancy for the McKenzie Arms project as agreed with NAME REDACTED,21/04/2021,0000466753,"18,000.00",Revenue,Envision Energy Ltd,0
South Ribble Borough Council,http://statistics.data.gov.uk/id/local-authority/30UE,Central Support Services,Materials General,4040,1 x carriage plate 1 x sweep plate VU11HSZ JFC16213,14/04/2021,0000464724,"1,800.00",Revenue,Euro Municipals Ltd,0
South Ribble Borough Council,http://statistics.data.gov.uk/id/local-authority/30UE,Elections,Polling Count Costs,4424,"Hire of 100 X 6ft X 30`` Polytop tables (12030) To be delivered to the South Ribble Tennis and Fitness Centre, Preston",07/04/2021,0000466171,755.00,Revenue,ev-ent Hire,0
South Ribble Borough Council,http://statistics.data.gov.uk/id/local-authority/30UE,Elections,Polling Count Costs,4424,"Hire of 100 X 6ft X 30`` Polytop tables (12030) To be delivered to the South Ribble Tennis and Fitness Centre, Preston",07/04/2021,0000466171,655.00,Revenue,ev-ent Hire,0
South Ribble Borough Council,http://statistics.data.gov.uk/id/local-authority/30UE,Elections,Polling Count Costs,4424,deposit,07/04/2021,0000466171,100.00,Revenue,ev-ent Hire,0
South Ribble Borough Council,http://statistics.data.gov.uk/id/local-authority/30UE,Elections,Polling Count Costs,4424,50 FOLDING CHAIRS FOR THE VERIFICATION AND COUNT(S) - (50% OF OVERALL COST) DELIVER TO TENNIS CENTRE,07/04/2021,0000466172,151.50,Revenue,ev-ent Hire,0
South Ribble Borough Council,http://statistics.data.gov.uk/id/local-authority/30UE,Elections,Polling Count Costs,4424,50 X FOLDING CHAIRS FOR VERIFICATION AND COUNT(S) (50% OF OVERALL COST) DELIVER TO TENNIS CENTRE,07/04/2021,0000466172,51.50,Revenue,ev-ent Hire,0
South Ribble Borough Council,http://statistics.data.gov.uk/id/local-authority/30UE,Elections,Polling Count Costs,4424,deposit,07/04/2021,0000466172,100.00,Revenue,ev-ent Hire,0
South Ribble Borough Council,http://statistics.data.gov.uk/id/local-authority/30UE,Capital,Cap Vehicles,C440,Supply and delivery of Tractor fitted with rear side arm flail mower as per Specification and signed submitted tender dated 20th March 2020.,14/04/2021,0000465934,"21,100.00",Revenue,F R SHARROCK LTD,0
South Ribble Borough Council,http://statistics.data.gov.uk/id/local-authority/30UE,Central Support Services,Materials General,4040,2 x bearing housing - BIN 1039,09/04/2021,0000466278,283.58,Revenue,F R SHARROCK LTD,0
South Ribble Borough Council,http://statistics.data.gov.uk/id/local-authority/30UE,Waste Collection,External Contractors Charges,4570,Additional Clinical Waste Collections March 2021 (estimated),14/04/2021,0000466551,681.72,Revenue,FCC Environment Services (UK) Ltd,0
South Ribble Borough Council,http://statistics.data.gov.uk/id/local-authority/30UE,Short Term Creditors,Amount Paid,0030,retention,14/04/2021,0000466551,-35.88,Revenue,FCC Environment Services (UK) Ltd,0
South Ribble Borough Council,http://statistics.data.gov.uk/id/local-authority/30UE,Waste Collection,External Contractors Charges,4570,Residual Waste Collections March 2021,14/04/2021,0000466552,"46,869.90",Revenue,FCC Environment Services (UK) Ltd,0
South Ribble Borough Council,http://statistics.data.gov.uk/id/local-authority/30UE,Recycling,External Contractors Charges,4570,Dry recyclable (Non Terraced) Collections March 2021,14/04/2021,0000466552,"47,981.92",Revenue,FCC Environment Services (UK) Ltd,0
South Ribble Borough Council,http://statistics.data.gov.uk/id/local-authority/30UE,Recycling,External Contractors Charges,4570,Dry Recyclable (Terraced) Collections March 2021,14/04/2021,0000466552,"2,283.78",Revenue,FCC Environment Services (UK) Ltd,0
South Ribble Borough Council,http://statistics.data.gov.uk/id/local-authority/30UE,Recycling,External Contractors Charges,4570,Organic Waste (Non terraced) Collections March 2021,14/04/2021,0000466552,"33,222.59",Revenue,FCC Environment Services (UK) Ltd,0
South Ribble Borough Council,http://statistics.data.gov.uk/id/local-authority/30UE,Trade Waste,External Contractors Charges,4570,Schedule 2 properties Collections March 2021,14/04/2021,0000466552,"1,910.50",Revenue,FCC Environment Services (UK) Ltd,0
South Ribble Borough Council,http://statistics.data.gov.uk/id/local-authority/30UE,Trade Waste,External Contractors Charges,4570,Commercial Collections March 2021,14/04/2021,0000466552,"7,439.27",Revenue,FCC Environment Services (UK) Ltd,0
South Ribble Borough Council,http://statistics.data.gov.uk/id/local-authority/30UE,Waste Collection,External Contractors Charges,4570,Bulky Waste Collections March 2021,14/04/2021,0000466552,"1,032.37",Revenue,FCC Environment Services (UK) Ltd,0
South Ribble Borough Council,http://statistics.data.gov.uk/id/local-authority/30UE,Waste Collection,External Contractors Charges,4570,WEEE Collections March 2021,14/04/2021,0000466552,387.78,Revenue,FCC Environment Services (UK) Ltd,0
South Ribble Borough Council,http://statistics.data.gov.uk/id/local-authority/30UE,Waste Collection,External Contractors Charges,4570,Clinical Waste Collections March 2021,14/04/2021,0000466552,660.62,Revenue,FCC Environment Services (UK) Ltd,0
South Ribble Borough Council,http://statistics.data.gov.uk/id/local-authority/30UE,Waste Collection,External Contractors Charges,4570,Replacement Bins March 2021,14/04/2021,0000466552,"5,000.00",Revenue,FCC Environment Services (UK) Ltd,0
South Ribble Borough Council,http://statistics.data.gov.uk/id/local-authority/30UE,Waste Collection,External Contractors Charges,4570,Additional Properties March 2021,14/04/2021,0000466552,"4,116.80",Revenue,FCC Environment Services (UK) Ltd,0
South Ribble Borough Council,http://statistics.data.gov.uk/id/local-authority/30UE,Short Term Creditors,Amount Paid,0030,ret refuse,14/04/2021,0000466552,"-3,120.86",Revenue,FCC Environment Services (UK) Ltd,0
South Ribble Borough Council,http://statistics.data.gov.uk/id/local-authority/30UE,Short Term Creditors,Amount Paid,0030,ret recycle,14/04/2021,0000466552,"-4,174.41",Revenue,FCC Environment Services (UK) Ltd,0
South Ribble Borough Council,http://statistics.data.gov.uk/id/local-authority/30UE,Waste Collection,External Contractors Charges,4570,Additional WEEE Collections March 2021 (estimated),14/04/2021,0000466553,842.88,Revenue,FCC Environment Services (UK) Ltd,0
South Ribble Borough Council,http://statistics.data.gov.uk/id/local-authority/30UE,Waste Collection,External Contractors Charges,4570,Additional Bulky Waste Collections March 2021 (Estimated),14/04/2021,0000466553,"1,103.30",Revenue,FCC Environment Services (UK) Ltd,0
South Ribble Borough Council,http://statistics.data.gov.uk/id/local-authority/30UE,Short Term Creditors,Amount Paid,0030,retention,14/04/2021,0000466553,-97.35,Revenue,FCC Environment Services (UK) Ltd,0
South Ribble Borough Council,http://statistics.data.gov.uk/id/local-authority/30UE,Central Support Services,Applications Systems,4248,Annual Renewal of Service Designer/Customer Portal/Staff Portal and Payments for period 23/03/21 - 22/03/22,23/04/2021,0000466290,"26,036.85",Revenue,FIRMSTEP,0
South Ribble Borough Council,http://statistics.data.gov.uk/id/local-authority/30UE,Surplus or Deficit on Trading,Professional Fees,4510,Fittton Estates to carry out a report and valuation of Forward Industrial Estate. provide opinion on the estat as per NAME REDACTED,16/04/2021,0000466708,"1,950.00",Revenue,Fitton Estates.com Ltd,0
South Ribble Borough Council,http://statistics.data.gov.uk/id/local-authority/30UE,Central Support Services,Operational Equip & Tools,4010,FOOTBALL PITCH LINE MARKER PAINT 10LTRS - PITCHMARKER Q2,09/04/2021,0000466547,497.04,Revenue,Fleet Line Markers Limited,0
South Ribble Borough Council,http://statistics.data.gov.uk/id/local-authority/30UE,Open Spaces,Operational Equip & Tools,4010,2 Toro Pro Stripe 560 Pedestrian Mowers as per your quotation dated 10th February 2021,07/04/2021,0000466299,"2,400.00",Revenue,GIBSONS GARDEN MACHINERY LTD,0
South Ribble Borough Council,http://statistics.data.gov.uk/id/local-authority/30UE,Central Support Services,Materials General,4040,1 SET HAMMERS & 1 SET BLADES SHR01GM JFC16388,14/04/2021,0000466538,746.88,Revenue,GIBSONS GARDEN MACHINERY LTD,0
South Ribble Borough Council,http://statistics.data.gov.uk/id/local-authority/30UE,Central Support Services,Legal,4821,PROFESSIONAL SERVICES REGARDING AN ONGOING MATTER - WAINHOMES - CHAINHOUSE LANE - REDETERMINATION OF MATTER.,07/04/2021,0000466359,"18,250.00",Revenue,Giles Cannock,0
South Ribble Borough Council,http://statistics.data.gov.uk/id/local-authority/30UE,Central Support Services,Reactive Repair & Maintenance,2020,For work on the pumps at West Paddock. As per NAME REDACTED. The works are as quoted 1277.50+vat,16/04/2021,0000466716,"1,277.50",Revenue,GOS Heating Ltd,0
South Ribble Borough Council,http://statistics.data.gov.uk/id/local-authority/30UE,Capital,Cap Contract Payment,C230,"McKenzie Arms Site ADDRESS REDACTED Professional Services � Procurement, Project Management and Quantity Surveying Services",14/04/2021,0000466308,"3,700.00",Revenue,Gosling Construction Services Limited,0
South Ribble Borough Council,http://statistics.data.gov.uk/id/local-authority/30UE,Capital,Cap Contract Payment,C230,"Provide services to Worden Hall PM and QS support RIBA stage 4-7 �  Fee proposal, draw down schedule as agreed with SRBC Regeneration",23/04/2021,0000466369,"8,641.67",Revenue,Gosling Construction Services Limited,0
South Ribble Borough Council,http://statistics.data.gov.uk/id/local-authority/30UE,Democratic Represent and  Mgnt,Members Training,1406,NAME REDACTED TO ATTEND LGBT+ IN THE WORKPLACE CONFERENCE 2021 ON 22 JUNE 2021,30/04/2021,0000467103,289.00,Revenue,Government Events,0
South Ribble Borough Council,http://statistics.data.gov.uk/id/local-authority/30UE,Central Support Services,Software Licensing,4243,Grace - Risk Management Version Annual Licence Fee to 1st March 2022 2995 plus VAT,14/04/2021,0000464654,"2,995.00",Revenue,Grace Governance Solutions Ltd,0
South Ribble Borough Council,http://statistics.data.gov.uk/id/local-authority/30UE,Central Support Services,Software Licensing,4243,Grace - Business Continuity Version Annual Licence Fee to 1st March 2022 395 plus VAT,14/04/2021,0000464654,395.00,Revenue,Grace Governance Solutions Ltd,0
South Ribble Borough Council,http://statistics.data.gov.uk/id/local-authority/30UE,Central Support Services,Software Licensing,4243,Grace - Emergency Planning Version Annual Licence Fee to 1st March 2022 395 plus VAT,14/04/2021,0000464654,395.00,Revenue,Grace Governance Solutions Ltd,0
South Ribble Borough Council,http://statistics.data.gov.uk/id/local-authority/30UE,Capital,Cap Contract Payment,C230,ICN Expression of Interest Lot L3 McKenzie Arms as per NAME REDACTED,14/04/2021,0000466675,"4,000.00",Revenue,Great Places Housing Group,0
South Ribble Borough Council,http://statistics.data.gov.uk/id/local-authority/30UE,Open Spaces,GM Refurbishment,4657,To lay approx 17m2 of Notts Sport Childsplay on ground prepared by Kompan in Olive Green at Hurst Grange park.,07/04/2021,0000465100,590.00,Revenue,GROUNDWORK LEISURE SERVICES LTD,0
South Ribble Borough Council,http://statistics.data.gov.uk/id/local-authority/30UE,Open Spaces,GM Refurbishment,4657,Repair and Covering of Playground Safer Surfacing at Coupe Green and Tardy Gate.,07/04/2021,0000465875,"7,570.00",Revenue,GROUNDWORK LEISURE SERVICES LTD,0
South Ribble Borough Council,http://statistics.data.gov.uk/id/local-authority/30UE,Open Spaces,GM Refurbishment,4657,Repair and Covering of Playground Safer Surfacing at Coupe Green and Tardy Gate.,07/04/2021,0000465875,"11,355.00",Revenue,GROUNDWORK LEISURE SERVICES LTD,0
South Ribble Borough Council,http://statistics.data.gov.uk/id/local-authority/30UE,Recreation & Sport,Reactive Repair & Maintenance,2020,"To carry out groundworks tidy up to Leyland Leisure Centre as per NAME REDACTED request, 6250.00 as per quote, 1st March",07/04/2021,0000466370,"6,250.00",Revenue,GSU Landscapes Limited,0
South Ribble Borough Council,http://statistics.data.gov.uk/id/local-authority/30UE,Central Support Services,Materials General,4040,2 x Brake Pads WP1577 @ 125.00 - Bin 538,07/04/2021,0000466504,250.00,Revenue,H & J SERVICES LTD,0
South Ribble Borough Council,http://statistics.data.gov.uk/id/local-authority/30UE,Central Support Services,Materials General,4040,Disc Pads x 4 - BIN538,23/04/2021,0000466978,500.00,Revenue,H & J SERVICES LTD,0
South Ribble Borough Council,http://statistics.data.gov.uk/id/local-authority/30UE,Central Support Services,Materials General,4040,2 x Brake pad kit and 1 x wear sensors- BIN541,23/04/2021,0000466978,314.00,Revenue,H & J SERVICES LTD,0
South Ribble Borough Council,http://statistics.data.gov.uk/id/local-authority/30UE,Central Support Services,Materials General,4040,2 x pad kits- BIN541,23/04/2021,0000466978,170.00,Revenue,H & J SERVICES LTD,0
South Ribble Borough Council,http://statistics.data.gov.uk/id/local-authority/30UE,Central Support Services,Materials General,4040,BLACK SACKS - 455x760x990-250g Bi Modal Super plus - Keep South Ribble Tidy in white,23/04/2021,0000466903,"5,012.40",Revenue,HARRISONS PACKAGING LTD,0
South Ribble Borough Council,http://statistics.data.gov.uk/id/local-authority/30UE,Long Term Debtors,Amount Paid,0030,Payment of loan Installments 1 & 2,07/04/2021,0000466189,"75,000.00",Revenue,HOOLE VILLAGE MEMORIAL HALL COMMITTEE,0
South Ribble Borough Council,http://statistics.data.gov.uk/id/local-authority/30UE,Long Term Debtors,Amount Paid,0030,Payment of loan Installments 1 & 2,07/04/2021,0000466189,"75,000.00",Revenue,HOOLE VILLAGE MEMORIAL HALL COMMITTEE,0
South Ribble Borough Council,http://statistics.data.gov.uk/id/local-authority/30UE,Community Development,Core Fund,4861,Contribution to the community garden in the Village Hall grounds,30/04/2021,0000467183,"7,686.00",Revenue,HOOLE VILLAGE MEMORIAL HALL COMMITTEE,0
South Ribble Borough Council,http://statistics.data.gov.uk/id/local-authority/30UE,Capital,Cap Contract Payment,C230,"Post Contract Variations, Site Meetings, Financial Statements (based on 7 months)",14/04/2021,0000466687,"1,375.40",Revenue,Ian Brew QS Consultancy,0
South Ribble Borough Council,http://statistics.data.gov.uk/id/local-authority/30UE,Development Control,Legal,4821,An expert witness at the Planning Appeal in respect of the outline planning application for development of 100 homes at Chain House Lane,16/04/2021,0000466371,"9,726.10",Revenue,Iceni Projects Limited,0
South Ribble Borough Council,http://statistics.data.gov.uk/id/local-authority/30UE,Central Support Services,Individual Subs Prof. Bodies,1741,IOL MEMBERSHIP SUBSCRIPTION RENEWAL - 2021/2022. EXPIRES 31 MARCH 2022,21/04/2021,0000466761,310.00,Revenue,INSTITUTE OF LICENSING,0
South Ribble Borough Council,http://statistics.data.gov.uk/id/local-authority/30UE,Capital,Cap Contract Payment,C230,"Architects Fees for Stages 5 and 6, ADDRESS REDACTED",07/04/2021,0000466209,"4,280.00",Revenue,Ivan Wilson Architect,0
South Ribble Borough Council,http://statistics.data.gov.uk/id/local-authority/30UE,Open Spaces,Plants Trees & Shrubs,4046,Supply of various trees,16/04/2021,0000466701,285.00,Revenue,J A JONES & SONS,0
South Ribble Borough Council,http://statistics.data.gov.uk/id/local-authority/30UE,Community Development,Core Fund,4861,Plants for  the dementia  garden  as per NAME REDACTED request and quotation 19TH March 2021 - order confirmation date 25th March 2021,28/04/2021,0000466950,"1,420.05",Revenue,J A JONES & SONS,0
South Ribble Borough Council,http://statistics.data.gov.uk/id/local-authority/30UE,Capital,Cap Contract Payment,C230,Description: footpath improvement works Leyland as requested by NAME REDACTED,14/04/2021,0000466372,"50,000.00",Revenue,John Wade Groundworks Ltd t/a Wade Group,0
South Ribble Borough Council,http://statistics.data.gov.uk/id/local-authority/30UE,Recreation & Sport,Reactive Repair & Maintenance,2020,"119 No 2.4 x 4.8m car bays, 5 No full DDA bays, 4 No P&T bays, 2 No Contractors Only, 264Lm of Double line",21/04/2021,0000466768,"1,778.08",Revenue,KAYS TRAFFIC MANAGEMENT LTD,0
South Ribble Borough Council,http://statistics.data.gov.uk/id/local-authority/30UE,Recreation & Sport,Reactive Repair & Maintenance,2020,110 m2 of yellow cross hatch in hot applied thermoplastic screed All based on weekday off peak working in hot applied thermoplastic screed,21/04/2021,0000466768,280.40,Revenue,KAYS TRAFFIC MANAGEMENT LTD,0
South Ribble Borough Council,http://statistics.data.gov.uk/id/local-authority/30UE,Central Support Services,Short Course,1402,NAMES REDACTED TO ATTEND ENVIRONMENTAL ENFORCEMENT CONTINUED COMPETENCE TRAINING - 22 & 23 MARCH 2021,28/04/2021,0000466967,"1,080.00",Revenue,KEEP BRITAIN TIDY,0
South Ribble Borough Council,http://statistics.data.gov.uk/id/local-authority/30UE,Central Support Services,Short Course,1402,NAME REDACTED TO ATTEND `ENFORCEMENT ACADEMY CONTINUED COMPETENCE VIA TEAMS ON 4 & 5 MAY 2021,28/04/2021,0000467028,360.00,Revenue,KEEP BRITAIN TIDY,0
South Ribble Borough Council,http://statistics.data.gov.uk/id/local-authority/30UE,Community Development,Miscellaneous Expenses,4851,Fridge and freezer for the community shop,28/04/2021,0000467051,"1,989.00",Revenue,KEY UNLOCKING FUTURES LTD,0
South Ribble Borough Council,http://statistics.data.gov.uk/id/local-authority/30UE,Regulatory Services,Poisons & Baits,4041,4 boxes of 72 Deadline Rat Blocks @ 43.00,14/04/2021,0000463943,172.00,Revenue,KILLGERM CHEMICALS LTD,0
South Ribble Borough Council,http://statistics.data.gov.uk/id/local-authority/30UE,Regulatory Services,Poisons & Baits,4041,50 x SNAP-E Mouse Trap SNAPESME @ 1.53,14/04/2021,0000463943,57.50,Revenue,KILLGERM CHEMICALS LTD,0
South Ribble Borough Council,http://statistics.data.gov.uk/id/local-authority/30UE,Regulatory Services,Poisons & Baits,4041,10 x PX17 Microcell Pot @ 2.34,14/04/2021,0000463943,34.70,Revenue,KILLGERM CHEMICALS LTD,0
South Ribble Borough Council,http://statistics.data.gov.uk/id/local-authority/30UE,Surplus or Deficit on Trading,Reactive Repair & Maintenance,2020,2020 / 2021 contract for water hygiene monitoring at Gregson Lane Pavilion,21/04/2021,0000465316,46.25,Revenue,KNOWSLEY BLD & ENVIRONMENTAL SERVICES LT,0
South Ribble Borough Council,http://statistics.data.gov.uk/id/local-authority/30UE,Surplus or Deficit on Trading,Reactive Repair & Maintenance,2020,2020 / 2021 contract for water hygiene monitoring at Hern Avenue Pavilion,21/04/2021,0000465316,46.25,Revenue,KNOWSLEY BLD & ENVIRONMENTAL SERVICES LT,0
South Ribble Borough Council,http://statistics.data.gov.uk/id/local-authority/30UE,Surplus or Deficit on Trading,Reactive Repair & Maintenance,2020,2020 / 2021 contract for water hygiene monitoring at Higher Walton Pavilion,21/04/2021,0000465316,46.25,Revenue,KNOWSLEY BLD & ENVIRONMENTAL SERVICES LT,0
South Ribble Borough Council,http://statistics.data.gov.uk/id/local-authority/30UE,Surplus or Deficit on Trading,Reactive Repair & Maintenance,2020,2020 / 2021 contract for water hygiene monitoring at Holme Pavilion,21/04/2021,0000465316,46.25,Revenue,KNOWSLEY BLD & ENVIRONMENTAL SERVICES LT,0
South Ribble Borough Council,http://statistics.data.gov.uk/id/local-authority/30UE,Surplus or Deficit on Trading,Reactive Repair & Maintenance,2020,2020 / 2021 contract for water hygiene monitoring at Hutton Pavilion,21/04/2021,0000465316,46.25,Revenue,KNOWSLEY BLD & ENVIRONMENTAL SERVICES LT,0
South Ribble Borough Council,http://statistics.data.gov.uk/id/local-authority/30UE,Surplus or Deficit on Trading,Reactive Repair & Maintenance,2020,2020 / 2021 contract for water hygiene monitoring at Kingsfold pavilion,21/04/2021,0000465316,54.00,Revenue,KNOWSLEY BLD & ENVIRONMENTAL SERVICES LT,0
South Ribble Borough Council,http://statistics.data.gov.uk/id/local-authority/30UE,Surplus or Deficit on Trading,Reactive Repair & Maintenance,2020,2020 / 2021 contract for water hygiene monitoring at sports pavilions Worden Park (formerly long pavilion),21/04/2021,0000465316,46.25,Revenue,KNOWSLEY BLD & ENVIRONMENTAL SERVICES LT,0
South Ribble Borough Council,http://statistics.data.gov.uk/id/local-authority/30UE,Surplus or Deficit on Trading,Reactive Repair & Maintenance,2020,2019 / 2020 contract for water hygiene monitoring at Moss Side Pavilion,21/04/2021,0000465316,54.00,Revenue,KNOWSLEY BLD & ENVIRONMENTAL SERVICES LT,0
South Ribble Borough Council,http://statistics.data.gov.uk/id/local-authority/30UE,Surplus or Deficit on Trading,Reactive Repair & Maintenance,2020,2020 / 2021 contract for water hygiene monitoring at Much Hoole Pavilion,21/04/2021,0000465316,46.25,Revenue,KNOWSLEY BLD & ENVIRONMENTAL SERVICES LT,0
South Ribble Borough Council,http://statistics.data.gov.uk/id/local-authority/30UE,Surplus or Deficit on Trading,Reactive Repair & Maintenance,2020,2020 / 2021 contract for water hygiene monitoring at Penwortham Holme,21/04/2021,0000465316,46.25,Revenue,KNOWSLEY BLD & ENVIRONMENTAL SERVICES LT,0
South Ribble Borough Council,http://statistics.data.gov.uk/id/local-authority/30UE,Surplus or Deficit on Trading,Reactive Repair & Maintenance,2020,2020 / 2021 contract for water hygiene monitoring at St Cuthbert`s Pavilion,21/04/2021,0000465316,46.25,Revenue,KNOWSLEY BLD & ENVIRONMENTAL SERVICES LT,0
South Ribble Borough Council,http://statistics.data.gov.uk/id/local-authority/30UE,Surplus or Deficit on Trading,Reactive Repair & Maintenance,2020,2020 / 2021 contract for water hygiene monitoring at Withy Grove Pavilion,21/04/2021,0000465316,54.00,Revenue,KNOWSLEY BLD & ENVIRONMENTAL SERVICES LT,0
South Ribble Borough Council,http://statistics.data.gov.uk/id/local-authority/30UE,Surplus or Deficit on Trading,Reactive Repair & Maintenance,2020,2020 / 2021 contract for water hygiene monitoring at Holland House Farm Pavilion,21/04/2021,0000465316,46.25,Revenue,KNOWSLEY BLD & ENVIRONMENTAL SERVICES LT,0
South Ribble Borough Council,http://statistics.data.gov.uk/id/local-authority/30UE,Surplus or Deficit on Trading,Reactive Repair & Maintenance,2020,"2020 / 2021 contract for water hygiene monitoring at The Derby Wing, Worden Park",21/04/2021,0000465316,43.75,Revenue,KNOWSLEY BLD & ENVIRONMENTAL SERVICES LT,0
South Ribble Borough Council,http://statistics.data.gov.uk/id/local-authority/30UE,Surplus or Deficit on Trading,Reactive Repair & Maintenance,2020,2020 / 2021 contract for water hygiene monitoring at Carr Street Community Centre,21/04/2021,0000465316,43.75,Revenue,KNOWSLEY BLD & ENVIRONMENTAL SERVICES LT,0
South Ribble Borough Council,http://statistics.data.gov.uk/id/local-authority/30UE,Surplus or Deficit on Trading,Reactive Repair & Maintenance,2020,2020 / 2021 contract for water hygiene monitoring at Higher Walton Community Centre,21/04/2021,0000465316,43.75,Revenue,KNOWSLEY BLD & ENVIRONMENTAL SERVICES LT,0
South Ribble Borough Council,http://statistics.data.gov.uk/id/local-authority/30UE,Surplus or Deficit on Trading,Reactive Repair & Maintenance,2020,2020 / 2021 contract for water hygiene monitoring at Moss Side Community Centre,21/04/2021,0000465316,43.75,Revenue,KNOWSLEY BLD & ENVIRONMENTAL SERVICES LT,0
South Ribble Borough Council,http://statistics.data.gov.uk/id/local-authority/30UE,Surplus or Deficit on Trading,Reactive Repair & Maintenance,2020,2020 / 2021 contract for water hygiene monitoring at Worden Arts & Craft Centre,21/04/2021,0000465316,59.25,Revenue,KNOWSLEY BLD & ENVIRONMENTAL SERVICES LT,0
South Ribble Borough Council,http://statistics.data.gov.uk/id/local-authority/30UE,Economic Development,Reactive Repair & Maintenance,2020,2020 / 2021 contract for water hygiene monitoring at Leyland Market,21/04/2021,0000465316,43.75,Revenue,KNOWSLEY BLD & ENVIRONMENTAL SERVICES LT,0
South Ribble Borough Council,http://statistics.data.gov.uk/id/local-authority/30UE,Surplus or Deficit on Trading,Reactive Repair & Maintenance,2020,2020 / 2021 contract for water hygiene monitoring at Hurst Grange Park,21/04/2021,0000465316,43.75,Revenue,KNOWSLEY BLD & ENVIRONMENTAL SERVICES LT,0
South Ribble Borough Council,http://statistics.data.gov.uk/id/local-authority/30UE,Regulatory Services,Reactive Repair & Maintenance,2020,"2020 / 2021 contract for water hygiene monitoring at Crossroads toilets, Worden Park",21/04/2021,0000465316,23.25,Revenue,KNOWSLEY BLD & ENVIRONMENTAL SERVICES LT,0
South Ribble Borough Council,http://statistics.data.gov.uk/id/local-authority/30UE,Regulatory Services,Reactive Repair & Maintenance,2020,2020 / 2021 contract for water hygiene monitoring at Hope Terrace Public toilets,21/04/2021,0000465316,23.25,Revenue,KNOWSLEY BLD & ENVIRONMENTAL SERVICES LT,0
South Ribble Borough Council,http://statistics.data.gov.uk/id/local-authority/30UE,Surplus or Deficit on Trading,Reactive Repair & Maintenance,2020,2020 / 2021 contract for water hygiene monitoring at Longton Brick Croft,21/04/2021,0000465316,26.25,Revenue,KNOWSLEY BLD & ENVIRONMENTAL SERVICES LT,0
South Ribble Borough Council,http://statistics.data.gov.uk/id/local-authority/30UE,Regulatory Services,Reactive Repair & Maintenance,2020,"2020 / 2021 contract for water hygiene monitoring at Playground toilets, Worden Park",21/04/2021,0000465316,26.25,Revenue,KNOWSLEY BLD & ENVIRONMENTAL SERVICES LT,0
South Ribble Borough Council,http://statistics.data.gov.uk/id/local-authority/30UE,Surplus or Deficit on Trading,Reactive Repair & Maintenance,2020,2020 / 2021 contract for water hygiene monitoring at SR Museum & Exhibition Centre,21/04/2021,0000465316,26.25,Revenue,KNOWSLEY BLD & ENVIRONMENTAL SERVICES LT,0
South Ribble Borough Council,http://statistics.data.gov.uk/id/local-authority/30UE,Regulatory Services,Reactive Repair & Maintenance,2020,2020 / 2021 contract for water hygiene monitoring at Withy Grove public toilets,21/04/2021,0000465316,23.25,Revenue,KNOWSLEY BLD & ENVIRONMENTAL SERVICES LT,0
South Ribble Borough Council,http://statistics.data.gov.uk/id/local-authority/30UE,Central Support Services,Reactive Repair & Maintenance,2020,"2020 / 2021 contract for water hygiene monitoring at the Civic Centre, Leyland",21/04/2021,0000465316,185.75,Revenue,KNOWSLEY BLD & ENVIRONMENTAL SERVICES LT,0
South Ribble Borough Council,http://statistics.data.gov.uk/id/local-authority/30UE,Central Support Services,Reactive Repair & Maintenance,2020,2020 / 2021 contract for water hygiene monitoring at Moss Side Depot,21/04/2021,0000465316,112.75,Revenue,KNOWSLEY BLD & ENVIRONMENTAL SERVICES LT,0
South Ribble Borough Council,http://statistics.data.gov.uk/id/local-authority/30UE,Surplus or Deficit on Trading,Reactive Repair & Maintenance,2020,2020 / 2021 contract for water hygiene monitoring at Longton Pavilion,21/04/2021,0000465316,46.25,Revenue,KNOWSLEY BLD & ENVIRONMENTAL SERVICES LT,0
South Ribble Borough Council,http://statistics.data.gov.uk/id/local-authority/30UE,Central Support Services,Reactive Repair & Maintenance,2020,Additional 6 monthly sampling at Moss Side Depot,21/04/2021,0000465316,30.00,Revenue,KNOWSLEY BLD & ENVIRONMENTAL SERVICES LT,0
South Ribble Borough Council,http://statistics.data.gov.uk/id/local-authority/30UE,Surplus or Deficit on Trading,Reactive Repair & Maintenance,2020,2020 / 2021 contract for water hygiene monitoring at Gregson Lane Pavilion,21/04/2021,0000465799,46.25,Revenue,KNOWSLEY BLD & ENVIRONMENTAL SERVICES LT,0
South Ribble Borough Council,http://statistics.data.gov.uk/id/local-authority/30UE,Surplus or Deficit on Trading,Reactive Repair & Maintenance,2020,2020 / 2021 contract for water hygiene monitoring at Hern Avenue Pavilion,21/04/2021,0000465799,46.25,Revenue,KNOWSLEY BLD & ENVIRONMENTAL SERVICES LT,0
South Ribble Borough Council,http://statistics.data.gov.uk/id/local-authority/30UE,Surplus or Deficit on Trading,Reactive Repair & Maintenance,2020,2020 / 2021 contract for water hygiene monitoring at Higher Walton Pavilion,21/04/2021,0000465799,46.25,Revenue,KNOWSLEY BLD & ENVIRONMENTAL SERVICES LT,0
South Ribble Borough Council,http://statistics.data.gov.uk/id/local-authority/30UE,Surplus or Deficit on Trading,Reactive Repair & Maintenance,2020,2020 / 2021 contract for water hygiene monitoring at Holme Pavilion,21/04/2021,0000465799,46.25,Revenue,KNOWSLEY BLD & ENVIRONMENTAL SERVICES LT,0
South Ribble Borough Council,http://statistics.data.gov.uk/id/local-authority/30UE,Surplus or Deficit on Trading,Reactive Repair & Maintenance,2020,2020 / 2021 contract for water hygiene monitoring at Hutton Pavilion,21/04/2021,0000465799,46.25,Revenue,KNOWSLEY BLD & ENVIRONMENTAL SERVICES LT,0
South Ribble Borough Council,http://statistics.data.gov.uk/id/local-authority/30UE,Surplus or Deficit on Trading,Reactive Repair & Maintenance,2020,2020 / 2021 contract for water hygiene monitoring at Kingsfold pavilion,21/04/2021,0000465799,54.00,Revenue,KNOWSLEY BLD & ENVIRONMENTAL SERVICES LT,0
South Ribble Borough Council,http://statistics.data.gov.uk/id/local-authority/30UE,Surplus or Deficit on Trading,Reactive Repair & Maintenance,2020,2020 / 2021 contract for water hygiene monitoring at sports pavilions Worden Park (formerly long pavilion),21/04/2021,0000465799,46.25,Revenue,KNOWSLEY BLD & ENVIRONMENTAL SERVICES LT,0
South Ribble Borough Council,http://statistics.data.gov.uk/id/local-authority/30UE,Surplus or Deficit on Trading,Reactive Repair & Maintenance,2020,2019 / 2020 contract for water hygiene monitoring at Moss Side Pavilion,21/04/2021,0000465799,54.00,Revenue,KNOWSLEY BLD & ENVIRONMENTAL SERVICES LT,0
South Ribble Borough Council,http://statistics.data.gov.uk/id/local-authority/30UE,Surplus or Deficit on Trading,Reactive Repair & Maintenance,2020,2020 / 2021 contract for water hygiene monitoring at Much Hoole Pavilion,21/04/2021,0000465799,46.25,Revenue,KNOWSLEY BLD & ENVIRONMENTAL SERVICES LT,0
South Ribble Borough Council,http://statistics.data.gov.uk/id/local-authority/30UE,Surplus or Deficit on Trading,Reactive Repair & Maintenance,2020,2020 / 2021 contract for water hygiene monitoring at Penwortham Holme,21/04/2021,0000465799,46.25,Revenue,KNOWSLEY BLD & ENVIRONMENTAL SERVICES LT,0
South Ribble Borough Council,http://statistics.data.gov.uk/id/local-authority/30UE,Surplus or Deficit on Trading,Reactive Repair & Maintenance,2020,2020 / 2021 contract for water hygiene monitoring at St Cuthbert`s Pavilion,21/04/2021,0000465799,46.25,Revenue,KNOWSLEY BLD & ENVIRONMENTAL SERVICES LT,0
South Ribble Borough Council,http://statistics.data.gov.uk/id/local-authority/30UE,Surplus or Deficit on Trading,Reactive Repair & Maintenance,2020,2020 / 2021 contract for water hygiene monitoring at Withy Grove Pavilion,21/04/2021,0000465799,54.00,Revenue,KNOWSLEY BLD & ENVIRONMENTAL SERVICES LT,0
South Ribble Borough Council,http://statistics.data.gov.uk/id/local-authority/30UE,Surplus or Deficit on Trading,Reactive Repair & Maintenance,2020,2020 / 2021 contract for water hygiene monitoring at Holland House Farm Pavilion,21/04/2021,0000465799,46.25,Revenue,KNOWSLEY BLD & ENVIRONMENTAL SERVICES LT,0
South Ribble Borough Council,http://statistics.data.gov.uk/id/local-authority/30UE,Surplus or Deficit on Trading,Reactive Repair & Maintenance,2020,"2020 / 2021 contract for water hygiene monitoring at The Derby Wing, Worden Park",21/04/2021,0000465799,43.75,Revenue,KNOWSLEY BLD & ENVIRONMENTAL SERVICES LT,0
South Ribble Borough Council,http://statistics.data.gov.uk/id/local-authority/30UE,Surplus or Deficit on Trading,Reactive Repair & Maintenance,2020,2020 / 2021 contract for water hygiene monitoring at Carr Street Community Centre,21/04/2021,0000465799,43.75,Revenue,KNOWSLEY BLD & ENVIRONMENTAL SERVICES LT,0
South Ribble Borough Council,http://statistics.data.gov.uk/id/local-authority/30UE,Surplus or Deficit on Trading,Reactive Repair & Maintenance,2020,2020 / 2021 contract for water hygiene monitoring at Higher Walton Community Centre,21/04/2021,0000465799,43.75,Revenue,KNOWSLEY BLD & ENVIRONMENTAL SERVICES LT,0
South Ribble Borough Council,http://statistics.data.gov.uk/id/local-authority/30UE,Surplus or Deficit on Trading,Reactive Repair & Maintenance,2020,2020 / 2021 contract for water hygiene monitoring at Moss Side Community Centre,21/04/2021,0000465799,43.75,Revenue,KNOWSLEY BLD & ENVIRONMENTAL SERVICES LT,0
South Ribble Borough Council,http://statistics.data.gov.uk/id/local-authority/30UE,Surplus or Deficit on Trading,Reactive Repair & Maintenance,2020,2020 / 2021 contract for water hygiene monitoring at Worden Arts & Craft Centre,21/04/2021,0000465799,59.25,Revenue,KNOWSLEY BLD & ENVIRONMENTAL SERVICES LT,0
South Ribble Borough Council,http://statistics.data.gov.uk/id/local-authority/30UE,Economic Development,Reactive Repair & Maintenance,2020,2020 /2021 contract for water hygiene monitoring at Leyland Market,21/04/2021,0000465799,43.75,Revenue,KNOWSLEY BLD & ENVIRONMENTAL SERVICES LT,0
South Ribble Borough Council,http://statistics.data.gov.uk/id/local-authority/30UE,Surplus or Deficit on Trading,Reactive Repair & Maintenance,2020,2020 / 2021 contract for water hygiene monitoring at Hurst Grange Park,21/04/2021,0000465799,43.75,Revenue,KNOWSLEY BLD & ENVIRONMENTAL SERVICES LT,0
South Ribble Borough Council,http://statistics.data.gov.uk/id/local-authority/30UE,Regulatory Services,Reactive Repair & Maintenance,2020,"2020 / 2021 contract for water hygiene monitoring at Crossroads toilets, Worden Park",21/04/2021,0000465799,23.25,Revenue,KNOWSLEY BLD & ENVIRONMENTAL SERVICES LT,0
South Ribble Borough Council,http://statistics.data.gov.uk/id/local-authority/30UE,Regulatory Services,Reactive Repair & Maintenance,2020,2020 / 2021 contract for water hygiene monitoring at Hope Terrace Public toilets,21/04/2021,0000465799,23.25,Revenue,KNOWSLEY BLD & ENVIRONMENTAL SERVICES LT,0
South Ribble Borough Council,http://statistics.data.gov.uk/id/local-authority/30UE,Surplus or Deficit on Trading,Reactive Repair & Maintenance,2020,2020 / 2021 contract for water hygiene monitoring at Longton Brick Croft,21/04/2021,0000465799,26.25,Revenue,KNOWSLEY BLD & ENVIRONMENTAL SERVICES LT,0
South Ribble Borough Council,http://statistics.data.gov.uk/id/local-authority/30UE,Regulatory Services,Reactive Repair & Maintenance,2020,"2020 / 2021 contract for water hygiene monitoring at Playground toilets, Worden Park",21/04/2021,0000465799,26.25,Revenue,KNOWSLEY BLD & ENVIRONMENTAL SERVICES LT,0
South Ribble Borough Council,http://statistics.data.gov.uk/id/local-authority/30UE,Regulatory Services,Reactive Repair & Maintenance,2020,2020 / 2021 contract for water hygiene monitoring at Withy Grove public toilets,21/04/2021,0000465799,46.50,Revenue,KNOWSLEY BLD & ENVIRONMENTAL SERVICES LT,0
South Ribble Borough Council,http://statistics.data.gov.uk/id/local-authority/30UE,Central Support Services,Reactive Repair & Maintenance,2020,"2020 / 2021 contract for water hygiene monitoring at the Civic Centre, Leyland",21/04/2021,0000465799,185.75,Revenue,KNOWSLEY BLD & ENVIRONMENTAL SERVICES LT,0
South Ribble Borough Council,http://statistics.data.gov.uk/id/local-authority/30UE,Central Support Services,Reactive Repair & Maintenance,2020,2020 / 2021 contract for water hygiene monitoring at Moss Side Depot,21/04/2021,0000465799,112.75,Revenue,KNOWSLEY BLD & ENVIRONMENTAL SERVICES LT,0
South Ribble Borough Council,http://statistics.data.gov.uk/id/local-authority/30UE,Surplus or Deficit on Trading,Reactive Repair & Maintenance,2020,2020 / 2021 contract for water hygiene monitoring at Longton Pavilion,21/04/2021,0000465799,46.25,Revenue,KNOWSLEY BLD & ENVIRONMENTAL SERVICES LT,0
South Ribble Borough Council,http://statistics.data.gov.uk/id/local-authority/30UE,Central Support Services,Reactive Repair & Maintenance,2020,Additional 6 monthly sampling at Moss Side Depot,21/04/2021,0000465799,33.00,Revenue,KNOWSLEY BLD & ENVIRONMENTAL SERVICES LT,0
South Ribble Borough Council,http://statistics.data.gov.uk/id/local-authority/30UE,Capital,Misc Capital Payments,C234,LEF GRANT,07/04/2021,0000466268,"3,300.00",Revenue,Lancashire environmental fund,0
South Ribble Borough Council,http://statistics.data.gov.uk/id/local-authority/30UE,Central Support Services,Materials General,4040,4000 litres Bulk Adblue @ 0.22ppl,14/04/2021,0000466305,880.00,Revenue,LANCASHIRE OILS LTD,0
South Ribble Borough Council,http://statistics.data.gov.uk/id/local-authority/30UE,Capital,Capital Grant,C570,DFG WORK TO SUPPLY AND INSTALL A STAIRLIFT AT ADDRESS REDACTED AS PER QUOTE SUPPLIED OF 5948.00,07/04/2021,0000466350,"5,948.00",Revenue,LANCS COUNTY COUNCIL,0
South Ribble Borough Council,http://statistics.data.gov.uk/id/local-authority/30UE,Planning Policy,Contributions to Other Bodies,4730,Replacement order for PUR0039827 City Deal Quarter 4 New Homes Bonus,09/04/2021,0000466510,"219,770.00",Revenue,LANCS COUNTY COUNCIL,0
South Ribble Borough Council,http://statistics.data.gov.uk/id/local-authority/30UE,Development Control,Professional Fees,4510,2020/21 LERN annual agreement,14/04/2021,0000466557,"2,243.00",Revenue,LANCS COUNTY COUNCIL,0
South Ribble Borough Council,http://statistics.data.gov.uk/id/local-authority/30UE,Capital,Capital Grant,C570,DFG WORKS TO SUPPLY AND INSTALL A STAIRLIFT AT ADDRESS REDACTED AS PER QUOTE OF 6093.00 Total Cost 6093.00,16/04/2021,0000466781,"6,093.00",Revenue,LANCS COUNTY COUNCIL,0
South Ribble Borough Council,http://statistics.data.gov.uk/id/local-authority/30UE,Local Land Charges,L C C General,4530,LAND CHARGES - MARCH 2021,28/04/2021,0000466973,"1,496.50",Revenue,LANCS COUNTY COUNCIL,0
South Ribble Borough Council,http://statistics.data.gov.uk/id/local-authority/30UE,Capital,Capital Grant,C570,DFG grant to supply and install specialist toilet at ADDRESS REDACTED as per quote supplied of 3480.75 Grant payable 3480.75,28/04/2021,0000467021,"3,655.75",Revenue,LANCS COUNTY COUNCIL,0
South Ribble Borough Council,http://statistics.data.gov.uk/id/local-authority/30UE,Capital,Capital Grant,C570,DFG grant to supply and install step lift at ADDRESS REDACTED as per quote supplied of 14770. Total grant payable 14770.00,28/04/2021,0000467022,"14,770.00",Revenue,LANCS COUNTY COUNCIL,0
South Ribble Borough Council,http://statistics.data.gov.uk/id/local-authority/30UE,Central Support Services,Materials General,4040,1 x filter kit plus oil DX19XBJ JFC16434,14/04/2021,0000466499,298.19,Revenue,LANCS DAF,0
South Ribble Borough Council,http://statistics.data.gov.uk/id/local-authority/30UE,Central Support Services,Lease Car Rental,1131,VIN REDACTED,09/04/2021,0000466339,"4,152.69",Revenue,LeasePlan UK Ltd T/A Automotive Leasing,0
South Ribble Borough Council,http://statistics.data.gov.uk/id/local-authority/30UE,Central Support Services,Lease Car Rental,1131,vat,09/04/2021,0000466339,388.67,Revenue,LeasePlan UK Ltd T/A Automotive Leasing,0
South Ribble Borough Council,http://statistics.data.gov.uk/id/local-authority/30UE,Short Term Debtors,Manual Control,0001,-vat,09/04/2021,0000466339,-388.67,Revenue,LeasePlan UK Ltd T/A Automotive Leasing,0
South Ribble Borough Council,http://statistics.data.gov.uk/id/local-authority/30UE,Open Spaces,External Contractors Charges,4570,"Repairs to posts, gates and hinges on the gates to St Marys Church Penwortham",23/04/2021,0000466952,580.00,Revenue,Leyland Lane Wrought Iron Gates & Railings,0
South Ribble Borough Council,http://statistics.data.gov.uk/id/local-authority/30UE,Central Support Services,Operational Equip & Tools,4010,PADLOCKS  - SQUIRE 660 TO REDACTED,14/04/2021,0000466373,364.22,Revenue,M A C BUILDING PRODUCTS LTD,0
South Ribble Borough Council,http://statistics.data.gov.uk/id/local-authority/30UE,Open Spaces,Materials General,4040,"20 tonnes dark limestone 20mm to dust St Marys Church, Church Avenue, Penwortham, Tuesday 26th January @ 9.00am",14/04/2021,0000465275,413.09,Revenue,M C & M A STEWART HAULAGE LTD,0
South Ribble Borough Council,http://statistics.data.gov.uk/id/local-authority/30UE,Open Spaces,Materials General,4040,"Black Limestone 4mm to dust, St Marys, Church Avenue, Penwortham, Wednesday 24th February 2021",23/04/2021,0000466294,434.85,Revenue,M C & M A STEWART HAULAGE LTD,0
South Ribble Borough Council,http://statistics.data.gov.uk/id/local-authority/30UE,Open Spaces,Materials General,4040,"20 tonnes Dark limestone 20mm to dust, Worden Park storage bays NAMES REDACTED (on site) REDACTED",14/04/2021,0000466295,414.75,Revenue,M C & M A STEWART HAULAGE LTD,0
South Ribble Borough Council,http://statistics.data.gov.uk/id/local-authority/30UE,Open Spaces,Materials General,4040,"20 tonnes dark limestone 20mm to dust, St Marys Church, Church Avenue, Penwortham, Monday 1st February @ 9.00am",14/04/2021,0000466296,411.84,Revenue,M C & M A STEWART HAULAGE LTD,0
South Ribble Borough Council,http://statistics.data.gov.uk/id/local-authority/30UE,Capital,Capital Grant,C570,"DFG WORKS FOR LEVEL ACCESS BATHROOM AT ADDRESS REDACTED, New progress property 50% of quote of 5904.60 paid via grant",07/04/2021,0000466205,"2,650.94",Revenue,MAHONEY CONTRACTORS LTD,0
South Ribble Borough Council,http://statistics.data.gov.uk/id/local-authority/30UE,Capital,Capital Grant,C570,"DFG WORKS FOR LEVEL ACCESS BATHROOM AT ADDRESS REDACTED, New progress property 50% of quote of 4996.41 paid via grant",07/04/2021,0000466211,"2,498.21",Revenue,MAHONEY CONTRACTORS LTD,0
South Ribble Borough Council,http://statistics.data.gov.uk/id/local-authority/30UE,Capital,Capital Grant,C570,"DFG WORKS FOR LEVEL ACCESS BATHROOM AT ADDRESS REDACTED, New progress property 50% of quote of 7623.10 paid via grant",21/04/2021,0000466801,"3,356.23",Revenue,MAHONEY CONTRACTORS LTD,0
South Ribble Borough Council,http://statistics.data.gov.uk/id/local-authority/30UE,Capital,Capital Grant,C570,"DFG WORKS FOR LEVEL ACCESS BATHROOM AT ADDRESS REDACTED, New progress property 50% of quote of 6259.88 paid via grant",21/04/2021,0000466802,"3,129.94",Revenue,MAHONEY CONTRACTORS LTD,0
South Ribble Borough Council,http://statistics.data.gov.uk/id/local-authority/30UE,Capital,Capital Grant,C570,DFG WORKS FOR LEVEL ACCESS BATHROOM AT ADDRESS REDACTED AS PER QUOTE 5646.73 MINUS NEW PROGRESS WORKS,28/04/2021,0000467018,"2,763.36",Revenue,MAHONEY CONTRACTORS LTD,0
South Ribble Borough Council,http://statistics.data.gov.uk/id/local-authority/30UE,Capital,Capital Grant,C570,DFG WORKS FOR LEVEL ACCESS BATHROOM AT ADDRESS REDACTED AS PER QUOTE 6587.53 MINUS NEW PROGRESS WORKS,28/04/2021,0000467019,"2,838.96",Revenue,MAHONEY CONTRACTORS LTD,0
South Ribble Borough Council,http://statistics.data.gov.uk/id/local-authority/30UE,Capital,Capital Grant,C570,DFG WORKS FOR LEVEL ACCESS BATHROOM AT ADDRESS REDACTED AS PER QUOTE 6867.99 MINUS NEW PROGRESS WORKS,28/04/2021,0000467020,"3,250.46",Revenue,MAHONEY CONTRACTORS LTD,0
South Ribble Borough Council,http://statistics.data.gov.uk/id/local-authority/30UE,Open Spaces,GM Refurbishment,4657,REMOVAL OF RUBBLE AND WASTE FROM BELLIS WAY PLAYAREA - 1 LOAD BRICK RUBBLE @150 + 3 LOAD OF WASTE @210 EACH,14/04/2021,0000465949,630.00,Revenue,NAME REDACTED,0
South Ribble Borough Council,http://statistics.data.gov.uk/id/local-authority/30UE,Surplus or Deficit on Trading,Reactive Repair & Maintenance,2020,"Middleforth Garage Apply eve flashings Autotech garage. As per NAME REDACTED request, Roof repairs, 900.00",14/04/2021,0000466577,900.00,Revenue,NAME REDACTED,0
South Ribble Borough Council,http://statistics.data.gov.uk/id/local-authority/30UE,Surplus or Deficit on Trading,Reactive Repair & Maintenance,2020,Cottage Wordon Park Remove slates Rebatton Reslate as per estimate 1124 - as per NAME REDACTED,14/04/2021,0000466578,"1,700.00",Revenue,NAME REDACTED,0
South Ribble Borough Council,http://statistics.data.gov.uk/id/local-authority/30UE,Surplus or Deficit on Trading,Reactive Repair & Maintenance,2020,To fit new skylights at ADDRESS REDACTED rotating -  as per NAME REDACTED,30/04/2021,0000467179,"5,400.00",Revenue,NAME REDACTED,0
South Ribble Borough Council,http://statistics.data.gov.uk/id/local-authority/30UE,Capital,Capital Grant,C570,DFG WORK TO COMPLETE A LEVEL ACCESS BATHROOM AT ADDRESS REDACTED AS PER QUOTE SUPPLIED OF 4258.00,07/04/2021,0000466204,"2,898.29",Revenue,MSG Building and Construction Ltd,0
South Ribble Borough Council,http://statistics.data.gov.uk/id/local-authority/30UE,Recreation & Sport,Computer Software,4242,"Registration of bamberbridgeleisurecentre.co.uk for 10yrs 70.00, Registration of bamberbridgeleisurecentre.com for 10yrs, 120.00",14/04/2021,0000466210,190.00,Revenue,NAMESCO LTD,0
South Ribble Borough Council,http://statistics.data.gov.uk/id/local-authority/30UE,Recreation & Sport,Computer Software,4242,"Registration of bamberbridgetenniscentre.co.uk for 10yrs, 70.00, Registration of bamberbridgetenniscentre.com for 10yrs, 120.00",14/04/2021,0000466210,190.00,Revenue,NAMESCO LTD,0
South Ribble Borough Council,http://statistics.data.gov.uk/id/local-authority/30UE,Recreation & Sport,Computer Software,4242,"Registration of leylandleisurecentre.co.uk for 10yrs, 70.00, Registration of leylandleisurecentre.com for 10yrs, 120.00",14/04/2021,0000466210,190.00,Revenue,NAMESCO LTD,0
South Ribble Borough Council,http://statistics.data.gov.uk/id/local-authority/30UE,Recreation & Sport,Computer Software,4242,"Registration of penworthamleisurecentre.co.uk for 10yrs, 70.00, Registration of penworthamleisurecentre.com for 10yrs, 120.00",14/04/2021,0000466210,190.00,Revenue,NAMESCO LTD,0
South Ribble Borough Council,http://statistics.data.gov.uk/id/local-authority/30UE,Central Support Services,External Contractors Charges,4570,Steam Clean 26.2.21 PJ62 UCG JFC16459,09/04/2021,0000466533,65.00,Revenue,NAYLORS TRANSPORT (LEYLAND) ltd,0
South Ribble Borough Council,http://statistics.data.gov.uk/id/local-authority/30UE,Central Support Services,External Contractors Charges,4570,Steam Clean 5.3.21 PO20 ZRV JFC16460,09/04/2021,0000466533,65.00,Revenue,NAYLORS TRANSPORT (LEYLAND) ltd,0
South Ribble Borough Council,http://statistics.data.gov.uk/id/local-authority/30UE,Central Support Services,External Contractors Charges,4570,Steam Clean 9.3.21 VO65 KRF JFC16461,09/04/2021,0000466533,65.00,Revenue,NAYLORS TRANSPORT (LEYLAND) ltd,0
South Ribble Borough Council,http://statistics.data.gov.uk/id/local-authority/30UE,Central Support Services,External Contractors Charges,4570,Steam Clean 17.3.21 PO20 ZRZ JFC16462,09/04/2021,0000466533,65.00,Revenue,NAYLORS TRANSPORT (LEYLAND) ltd,0
South Ribble Borough Council,http://statistics.data.gov.uk/id/local-authority/30UE,Central Support Services,External Contractors Charges,4570,Steam Clean 19.3.21 PJ62 UCM JFC16463,09/04/2021,0000466533,95.00,Revenue,NAYLORS TRANSPORT (LEYLAND) ltd,0
South Ribble Borough Council,http://statistics.data.gov.uk/id/local-authority/30UE,Central Support Services,External Contractors Charges,4570,Steam Clean 11.3.21 YD19 AUM JFC16454,09/04/2021,0000466534,65.00,Revenue,NAYLORS TRANSPORT (LEYLAND) ltd,0
South Ribble Borough Council,http://statistics.data.gov.uk/id/local-authority/30UE,Central Support Services,External Contractors Charges,4570,Steam Clean 12.3.21 YA19 NGN JFC16455,09/04/2021,0000466534,65.00,Revenue,NAYLORS TRANSPORT (LEYLAND) ltd,0
South Ribble Borough Council,http://statistics.data.gov.uk/id/local-authority/30UE,Central Support Services,External Contractors Charges,4570,Steam Clean 24.3.21 YA19NJZ JFC16456,09/04/2021,0000466534,65.00,Revenue,NAYLORS TRANSPORT (LEYLAND) ltd,0
South Ribble Borough Council,http://statistics.data.gov.uk/id/local-authority/30UE,Central Support Services,External Contractors Charges,4570,Steam Clean 25.3.21 YA19 NKD JFC16457,09/04/2021,0000466534,65.00,Revenue,NAYLORS TRANSPORT (LEYLAND) ltd,0
South Ribble Borough Council,http://statistics.data.gov.uk/id/local-authority/30UE,Central Support Services,College Course,1403,NAME REDACTED TO ATTEND DIPLOMA IN APPLIED HEALTH AND SAFETY - HOME LEARNING - DATES TO BE ARRANGED,21/04/2021,0000466530,"2,100.00",Revenue,NCRQ (National Compliance Risk Qualification),0
South Ribble Borough Council,http://statistics.data.gov.uk/id/local-authority/30UE,Democratic Represent and  Mgnt,Corp Subs to Professional Bodies,4720,FULL MEMBERSHIP SUBSCRIPTION RENEWAL APRIL 2021 - MAR 2022,09/04/2021,0000466375,"4,195.05",Revenue,NORTH WEST EMPLOYERS,0
South Ribble Borough Council,http://statistics.data.gov.uk/id/local-authority/30UE,Central Support Services,Materials General,4040,CHANNEL BRUSH - 2.8 mm POLY & 3.3mm WIRE 5 row 700/1000mm - 78399/2,23/04/2021,0000466940,"1,027.90",Revenue,NORTHERN MUNICIPAL SPARES LTD,0
South Ribble Borough Council,http://statistics.data.gov.uk/id/local-authority/30UE,Central Support Services,Materials General,4040,SCHMIDT MINI SWEEPER BRUSHES (SWINGO) - POLY/WIRE MIX - 71107/1,23/04/2021,0000466940,183.92,Revenue,NORTHERN MUNICIPAL SPARES LTD,0
South Ribble Borough Council,http://statistics.data.gov.uk/id/local-authority/30UE,Central Support Services,Materials General,4040,4 ROW CHANNEL BRUSH - C/W 4 NUTS/BOLTS - 835/66,23/04/2021,0000466940,261.90,Revenue,NORTHERN MUNICIPAL SPARES LTD,0
South Ribble Borough Council,http://statistics.data.gov.uk/id/local-authority/30UE,Central Support Services,Operational Equip & Tools,4010,1 x Zanussi Double Oven with Ceramic Hob for Moss Side Depot Canteen (including installation and removal of old cooker),21/04/2021,0000466720,599.00,Revenue,NORTHWEST DOMESTIC SERVICES,0
South Ribble Borough Council,http://statistics.data.gov.uk/id/local-authority/30UE,Central Support Services,Operational Equip & Tools,4010,1 x Tecnix Larder Fridge (Vehicle Maintenance Mess Room),21/04/2021,0000466720,199.00,Revenue,NORTHWEST DOMESTIC SERVICES,0
South Ribble Borough Council,http://statistics.data.gov.uk/id/local-authority/30UE,Parking Services,Parking Attendants,4514,Deployment of officers March 2021 (estimated),14/04/2021,0000466334,"1,456.75",Revenue,NSL LTD,0
South Ribble Borough Council,http://statistics.data.gov.uk/id/local-authority/30UE,Parking Services,Cash Collection Charges Car Parks,4855,Cash collection and Ringo Charges March 2021 (estimated),14/04/2021,0000466334,525.06,Revenue,NSL LTD,0
South Ribble Borough Council,http://statistics.data.gov.uk/id/local-authority/30UE,Parking Services,Cash Collection Charges Car Parks,4855,Ringo Convenience Charge March 2021 (estimated),14/04/2021,0000466334,163.30,Revenue,NSL LTD,0
South Ribble Borough Council,http://statistics.data.gov.uk/id/local-authority/30UE,Open Spaces,Security Service,4526,Price per contracted itemised collection (estimated),14/04/2021,0000466334,34.20,Revenue,NSL LTD,0
South Ribble Borough Council,http://statistics.data.gov.uk/id/local-authority/30UE,Central Support Services,Clothing and Uniforms,4410,DISPOSABLE GLOVES NITRILE (BOX- 100) LARGE - DG150-L,14/04/2021,0000465806,333.00,Revenue,Pattersons (Bristol) Ltd,0
South Ribble Borough Council,http://statistics.data.gov.uk/id/local-authority/30UE,Corporate Management,Operational Equip & Tools,4010,Please supply 8 x  BRIGHTWELL MODULAR TOUCHFREE BULKFILL DISPENSER 1.2 LTR WHITE PLASTIC 4ELR to Leyland Market,14/04/2021,0000466500,350.00,Revenue,Pattersons (Bristol) Ltd,0
South Ribble Borough Council,http://statistics.data.gov.uk/id/local-authority/30UE,Central Support Services,Safety  Equipment,4016,3PLY GENERAL PURPOSE TYPE I FACE MASK (50),23/04/2021,0000466961,450.00,Revenue,Pattersons (Bristol) Ltd,0
South Ribble Borough Council,http://statistics.data.gov.uk/id/local-authority/30UE,Central Support Services,Safety  Equipment,4016,Jangro Professional Nitrile Disposable Glove Powder Free Blue Medium x 100,23/04/2021,0000466961,185.00,Revenue,Pattersons (Bristol) Ltd,0
South Ribble Borough Council,http://statistics.data.gov.uk/id/local-authority/30UE,Central Support Services,Safety  Equipment,4016,Jangro Professional Nitrile Disposable Glove Powder Free Blue Large x 100,23/04/2021,0000466961,185.00,Revenue,Pattersons (Bristol) Ltd,0
South Ribble Borough Council,http://statistics.data.gov.uk/id/local-authority/30UE,Central Support Services,Safety  Equipment,4016,Antibacterial Universal Wipe (72),23/04/2021,0000466961,158.40,Revenue,Pattersons (Bristol) Ltd,0
South Ribble Borough Council,http://statistics.data.gov.uk/id/local-authority/30UE,Short Term Debtors,Amount Paid,0030,For the cost of Penwortham Priory Academy Dual use Dilapidation Charges,21/04/2021,0000466810,"7,821.87",Revenue,PENWORTHAM PRIORY ACADEMY,0
South Ribble Borough Council,http://statistics.data.gov.uk/id/local-authority/30UE,Capital Grants & Contributions,Amount Paid,0030,Community Infrastructure Levy (CIL) Payment for Parish/Town Council re: planning application 07/2015/1610/FUL,14/04/2021,0000466575,876.89,Revenue,PENWORTHAM TOWN COUNCIL,0
South Ribble Borough Council,http://statistics.data.gov.uk/id/local-authority/30UE,Capital Grants & Contributions,Amount Paid,0030,Community Infrastructure Levy (CIL) Payment for Parish/Town Council re: planning application 07/2015/1313/FUL,14/04/2021,0000466575,"3,079.13",Revenue,PENWORTHAM TOWN COUNCIL,0
South Ribble Borough Council,http://statistics.data.gov.uk/id/local-authority/30UE,Recycling,Contract Printing,4127,Provision & posting of garden waste permits 2021/22 and hosting of permit management website. As per quote dated 28/08/2020,09/04/2021,0000466498,"7,803.74",Revenue,Permiserv Ltd,0
South Ribble Borough Council,http://statistics.data.gov.uk/id/local-authority/30UE,Central Support Services,Group life Insurance,1819,GROUP LIFE ASSURANCE SCHEME DEPOSIT (8519) APRIL 2021 - MARCH 2022,07/04/2021,0000466203,"5,000.00",Revenue,PHOENIX LIFE LTD,0
South Ribble Borough Council,http://statistics.data.gov.uk/id/local-authority/30UE,Corporate Management,Operational Equip & Tools,4010,"For the purchase of 70 tea crates  charges for the remaining 70 x LC3 is 9.00 each. As per NAME REDACTED 30 x LC3, 40 x LC3",16/04/2021,0000466702,345.60,Revenue,PHS TEA CRATE,0
South Ribble Borough Council,http://statistics.data.gov.uk/id/local-authority/30UE,Corporate Management,Operational Equip & Tools,4010,"For the purchase of 70 tea crates  charges for the remaining 70 x LC3 is 9.00 each. As per NAME REDACTED 30 x LC3, 40 x LC3",16/04/2021,0000466717,460.80,Revenue,PHS TEA CRATE,0
South Ribble Borough Council,http://statistics.data.gov.uk/id/local-authority/30UE,Central Support Services,Agency Staff,1121,Planning Enforcement consultancy services,16/04/2021,0000466267,"1,190.50",Revenue,Planning Control & PACE Solutions,0
South Ribble Borough Council,http://statistics.data.gov.uk/id/local-authority/30UE,Central Support Services,Agency Staff,1121,Planning Enforcement consultancy services,16/04/2021,0000466379,"1,377.50",Revenue,Planning Control & PACE Solutions,0
South Ribble Borough Council,http://statistics.data.gov.uk/id/local-authority/30UE,Central Support Services,Agency Staff,1121,Planning Enforcement consultancy services,21/04/2021,0000466962,"1,491.50",Revenue,Planning Control & PACE Solutions,0
South Ribble Borough Council,http://statistics.data.gov.uk/id/local-authority/30UE,Street Cleansing,Materials General,4040,40 Laminated Fly Tipping Signs - Ref 15013/1,30/04/2021,0000465956,489.09,Revenue,Poppy Signs Ltd,0
South Ribble Borough Council,http://statistics.data.gov.uk/id/local-authority/30UE,Capital,Cap Contract Payment,C230,2 x Heras Mesh Banners for Hurst Grange @ 147.60 each,14/04/2021,0000466380,295.19,Revenue,Poppy Signs Ltd,0
South Ribble Borough Council,http://statistics.data.gov.uk/id/local-authority/30UE,Capital,Cap Contract Payment,C230, Hoardings as per quote REF15098/1 for McKenzie Arms site for NAME REDACTED,21/04/2021,0000466774,774.95,Revenue,Poppy Signs Ltd,0
South Ribble Borough Council,http://statistics.data.gov.uk/id/local-authority/30UE,Central Support Services,Materials General,4040,PURSAN HAND GEL RUB - 417054,21/04/2021,0000466572,632.80,Revenue,PREMIER OFFICE SUPPLES (UK) LTD,0
South Ribble Borough Council,http://statistics.data.gov.uk/id/local-authority/30UE,Central Support Services,Paper Bulk,4133,"40,000 Evolution Everyday, 2500 Papago Green, 2500 Papago Lilac, 2500 Papago Canary, 2500 Papago Cream sheets A4 80gm",21/04/2021,0000466763,293.00,Revenue,PREMIER PAPER GROUP LTD,0
South Ribble Borough Council,http://statistics.data.gov.uk/id/local-authority/30UE,Homelessness,Contributions to Other Bodies,4730,Purple Roomz non-covid  placements to 31.1.2021,23/04/2021,0000466921,"3,408.00",Revenue,PRESTON CITY COUNCIL,0
South Ribble Borough Council,http://statistics.data.gov.uk/id/local-authority/30UE,Elections,Polling Card Costs,4423,PCC - Postage for 2021 Combined Poll Cards � job ref 7808 (50% of overall cost),07/04/2021,0000466170,"16,001.83",Revenue,PRINT IMAGE FACILITIES LLP,0
South Ribble Borough Council,http://statistics.data.gov.uk/id/local-authority/30UE,Elections,Polling Card Costs,4423,LCC - Postage for 2021 Combined Poll Cards � job ref 7808 (50% of overall cost),07/04/2021,0000466170,"16,001.83",Revenue,PRINT IMAGE FACILITIES LLP,0
South Ribble Borough Council,http://statistics.data.gov.uk/id/local-authority/30UE,Elections,Polling Card Costs,4423,2021 Combined Poll Cards (3 sorts) � job ref 7746 50% charge to LCC Election,30/04/2021,0000467223,"3,077.52",Revenue,PRINT IMAGE NETWORK LTD,0
South Ribble Borough Council,http://statistics.data.gov.uk/id/local-authority/30UE,Elections,Polling Card Costs,4423,2021 Combined Poll Cards (3 sorts) � job ref 7746 50% charge to PCC Election,30/04/2021,0000467223,"3,077.53",Revenue,PRINT IMAGE NETWORK LTD,0
South Ribble Borough Council,http://statistics.data.gov.uk/id/local-authority/30UE,Surplus or Deficit on Trading,Reactive Repair & Maintenance,2020,Please undertake repairs to the bin store on Worden park as per quotation Q3872,09/04/2021,0000466382,400.00,Revenue,PSR & Sons Joiners & Building Contractors,0
South Ribble Borough Council,http://statistics.data.gov.uk/id/local-authority/30UE,Surplus or Deficit on Trading,Reactive Repair & Maintenance,2020,LABOUR,09/04/2021,0000466382,40.00,Revenue,PSR & Sons Joiners & Building Contractors,0
South Ribble Borough Council,http://statistics.data.gov.uk/id/local-authority/30UE,Central Support Services,Franked Post,4292,Annual Service Charge - Franking Machine  - 2/4/21 to 1/4/22 + Royal Mail underpayment charges,07/04/2021,0000466178,"1,641.08",Revenue,Purchase Power,0
South Ribble Borough Council,http://statistics.data.gov.uk/id/local-authority/30UE,Central Support Services,Franked Post,4292,zero vat,07/04/2021,0000466178,6.11,Revenue,Purchase Power,0
South Ribble Borough Council,http://statistics.data.gov.uk/id/local-authority/30UE,Capital,Cap Contract Payment,C230,"Alteration, Adaption, Extension and Refurbishment Works - Hurst Grange Coach House, Penwortham",07/04/2021,0000466202,"50,119.13",Revenue,R Developments Ltd T/A Rosslee Construction Ltd,0
South Ribble Borough Council,http://statistics.data.gov.uk/id/local-authority/30UE,Capital,Cap Contract Payment,C230,"Alteration, Adaption, Extension and Refurbishment Works - Hurst Grange Coach House, Penwortham",30/04/2021,0000467177,"88,748.66",Revenue,R Developments Ltd T/A Rosslee Construction Ltd,0
South Ribble Borough Council,http://statistics.data.gov.uk/id/local-authority/30UE,Open Spaces,Hiring Expenses,3212,1.8T Excavator 1.2.21 - 31.3.21,30/04/2021,0000466356,720.00,Revenue,Readyplant Limited,0
South Ribble Borough Council,http://statistics.data.gov.uk/id/local-authority/30UE,Recreation & Sport,Reactive Repair & Maintenance,2020, For power washing all external cladding and brickwork to the front of Leyland Leisure centre. As per NAME REDACTED request.Wed 7th April,23/04/2021,0000466945,520.00,Revenue,RED ROSE BUILDING MAINTENANCE,0
South Ribble Borough Council,http://statistics.data.gov.uk/id/local-authority/30UE,Homelessness,Temporary Accommodation,5311,Old Steam Mill provision Q1 April - June 2021 5624.90,07/04/2021,0000466201,"5,624.90",Revenue,REDDY & CO,0
South Ribble Borough Council,http://statistics.data.gov.uk/id/local-authority/30UE,Central Support Services,Materials General,4040,"Yoke cylinder, packer cylinder, yoke profiles x 2, yoke pin, keep plate, bush, slide blocks x 8 YD19 ATY JFC16290",14/04/2021,0000466287,"1,993.18",Revenue,Refuse Vehicle Parts,0
South Ribble Borough Council,http://statistics.data.gov.uk/id/local-authority/30UE,Central Support Services,Materials General,4040,BIN CLAMP SPRING -  VO65KRD - JFC16375,21/04/2021,0000466390,315.00,Revenue,Refuse Vehicle Parts,0
South Ribble Borough Council,http://statistics.data.gov.uk/id/local-authority/30UE,Non Domestic Rates Redistribut,BRR Payments to Lancs Wide Fund,4996,Contribution to the Strategic Economic Growth and Financial Sustainability Fund for 2019/20 under the Lancashire Business Rates Pilot Pool,28/04/2021,0000467091,"2,662.08",Revenue,Ribble Valley Borough Council,0
South Ribble Borough Council,http://statistics.data.gov.uk/id/local-authority/30UE,Central Support Services,Individual Subs Prof. Bodies,1741,MEMBERSHIP SUBSCRIPTION RENEWAL FOR NAME REDACTED - REF:REDACTED - 1 JANUARY 2021 - 31 DECEMBER 2021,28/04/2021,0000467016,539.00,Revenue,RICS,0
South Ribble Borough Council,http://statistics.data.gov.uk/id/local-authority/30UE,Recreation & Sport,Consultancy Fees,4541,"A South Ribble Borough Council leisure specific Operations Management System: Procedures, Master Forms and checksheet`s",14/04/2021,0000466391,"8,550.00",Revenue,Right Directions (Management) Ltd,0
South Ribble Borough Council,http://statistics.data.gov.uk/id/local-authority/30UE,Central Support Services,Business Reply Services,4295,licence fee,09/04/2021,0000466503,341.67,Revenue,ROYAL MAIL GROUP PLC,0
South Ribble Borough Council,http://statistics.data.gov.uk/id/local-authority/30UE,Central Support Services,Business Reply Services,4295,licence,28/04/2021,0000466890,341.67,Revenue,ROYAL MAIL GROUP PLC,0
South Ribble Borough Council,http://statistics.data.gov.uk/id/local-authority/30UE,Central Support Services,Individual Subs Prof. Bodies,1741,MEMBERSHIP SUBSCRIPTION RENEWAL FOR NAME REDACTED - MEMBERSHIP NUMBER REDACTED,07/04/2021,0000465810,315.00,Revenue,RTPI,0
South Ribble Borough Council,http://statistics.data.gov.uk/id/local-authority/30UE,Central Support Services,External Contractors Charges,4570,Hopper Overhaul VU11 HSZ JFC16213,14/04/2021,0000465967,"5,817.68",Revenue,RTS Muni,0
South Ribble Borough Council,http://statistics.data.gov.uk/id/local-authority/30UE,Open Spaces,GM Refurbishment,4657,"Removal off site of wind blown Beech stem Middleforth Green, Penwortham as per quote Ref 1212",30/04/2021,0000466939,580.00,Revenue,RUSS ASPINALL T/A BEARDWOOD TREE SERVICE,0
South Ribble Borough Council,http://statistics.data.gov.uk/id/local-authority/30UE,Central Support Services,Materials General,4040,1000 litres Energize Premium Hi-Foaming TFR with Wax,07/04/2021,0000466301,911.15,Revenue,Saanro International Ltd,0
South Ribble Borough Council,http://statistics.data.gov.uk/id/local-authority/30UE,Short Term Debtors,Amount Paid,0030,To supply  continued Commercial Estates support for the Test Track mixed use development as per NAME REDACTED,14/04/2021,0000466393,"1,987.50",Revenue,Sanderson Weatherall LLP,0
South Ribble Borough Council,http://statistics.data.gov.uk/id/local-authority/30UE,Short Term Debtors,Amount Paid,0030,To supply  continued Commercial Estates support for the Test Track mixed use development as per NAME REDACTED,14/04/2021,0000466531,861.67,Revenue,Sanderson Weatherall LLP,0
South Ribble Borough Council,http://statistics.data.gov.uk/id/local-authority/30UE,Short Term Debtors,Amount Paid,0030,non vat,14/04/2021,0000466531,21.00,Revenue,Sanderson Weatherall LLP,0
South Ribble Borough Council,http://statistics.data.gov.uk/id/local-authority/30UE,Capital,Cap Contract Payment,C230,McKenzie Arms - RIBA Stage 4A Technical Design in accordance with fee proposal dated 11.11.2020,21/04/2021,0000466724,"7,000.00",Revenue,Sanderson Weatherall LLP,0
South Ribble Borough Council,http://statistics.data.gov.uk/id/local-authority/30UE,Surplus or Deficit on Trading,Electricity,2303,31/3/20 to 24/6/20,14/04/2021,0000457672,411.89,Revenue,SCOTTISH HYDRO ELECTRIC,0
South Ribble Borough Council,http://statistics.data.gov.uk/id/local-authority/30UE,Surplus or Deficit on Trading,Electricity,2303,11/11/20 to 18/2/21,14/04/2021,0000465896,"2,319.84",Revenue,SCOTTISH HYDRO ELECTRIC,0
South Ribble Borough Council,http://statistics.data.gov.uk/id/local-authority/30UE,Surplus or Deficit on Trading,Climate Change Levy,2307,CCL,14/04/2021,0000465896,78.73,Revenue,SCOTTISH HYDRO ELECTRIC,0
South Ribble Borough Council,http://statistics.data.gov.uk/id/local-authority/30UE,Surplus or Deficit on Trading,Electricity,2303,11/11/20 to 18/2/21,14/04/2021,0000465897,403.36,Revenue,SCOTTISH HYDRO ELECTRIC,0
South Ribble Borough Council,http://statistics.data.gov.uk/id/local-authority/30UE,Surplus or Deficit on Trading,Gas,2304,19/12/20 to 1/2/21,16/04/2021,0000466737,689.12,Revenue,SCOTTISH HYDRO ELECTRIC,0
South Ribble Borough Council,http://statistics.data.gov.uk/id/local-authority/30UE,Surplus or Deficit on Trading,Climate Change Levy,2307,CCL,16/04/2021,0000466737,45.69,Revenue,SCOTTISH HYDRO ELECTRIC,0
South Ribble Borough Council,http://statistics.data.gov.uk/id/local-authority/30UE,Recreation & Sport,Intruder Alarm,2035,2021 / 2022 keyholder service for Bamber Bridge Leisure Centre,16/04/2021,0000466677,365.00,Revenue,SECTOR SECURITY SERVICES LTD,0
South Ribble Borough Council,http://statistics.data.gov.uk/id/local-authority/30UE,Recreation & Sport,Intruder Alarm,2035,2021 / 2022 keyholder service for Leyland Leisure Centre,16/04/2021,0000466678,365.00,Revenue,SECTOR SECURITY SERVICES LTD,0
South Ribble Borough Council,http://statistics.data.gov.uk/id/local-authority/30UE,Recreation & Sport,Intruder Alarm,2035,2021 / 2022 keyholder service for South Ribble Tennis Centre,16/04/2021,0000466679,365.00,Revenue,SECTOR SECURITY SERVICES LTD,0
South Ribble Borough Council,http://statistics.data.gov.uk/id/local-authority/30UE,Recreation & Sport,Intruder Alarm,2035,2021 / 2022 keyholder service for Penwortham Leisure Centre,16/04/2021,0000466680,365.00,Revenue,SECTOR SECURITY SERVICES LTD,0
South Ribble Borough Council,http://statistics.data.gov.uk/id/local-authority/30UE,Central Support Services,Legal,4821,PROFESSIONAL SERVICES IN RELATION TO R (NAME REDACTED) V SOUTH RIBBLE BOROUGH COUNCIL AND OTHERS,07/04/2021,0000466188,250.00,Revenue,Simon Pickles LandmarkChambers,0
South Ribble Borough Council,http://statistics.data.gov.uk/id/local-authority/30UE,Central Support Services,Clothing and Uniforms,4410,BOOTS � ROCKFALL EBONITE - SIZE 9 - RF -EBONITE,21/04/2021,0000466732,69.80,Revenue,SMART IMAGE WORKWEAR,0
South Ribble Borough Council,http://statistics.data.gov.uk/id/local-authority/30UE,Central Support Services,Clothing and Uniforms,4410,WATERPROOF TROUSERS XXL,21/04/2021,0000466732,48.60,Revenue,SMART IMAGE WORKWEAR,0
South Ribble Borough Council,http://statistics.data.gov.uk/id/local-authority/30UE,Central Support Services,Clothing and Uniforms,4410,GLOVES - COWGRAIN LINED DRIVERS GLOVE MHS INTERNATIONAL - GR-CH,21/04/2021,0000466732,104.40,Revenue,SMART IMAGE WORKWEAR,0
South Ribble Borough Council,http://statistics.data.gov.uk/id/local-authority/30UE,Central Support Services,Clothing and Uniforms,4410,BOOTS � ROCKFALL EBONITE - SIZE 7 - RF -EBONITE,21/04/2021,0000466732,69.80,Revenue,SMART IMAGE WORKWEAR,0
South Ribble Borough Council,http://statistics.data.gov.uk/id/local-authority/30UE,Short Term Creditors,Amount Paid,0030,monthly deducts,07/04/2021,0000466285,"1,416.22",Revenue,SOUTH RIBBLE LABOUR PARTY LOCAL GOVERNM,0
South Ribble Borough Council,http://statistics.data.gov.uk/id/local-authority/30UE,Short Term Creditors,Amount Paid,0030,Monthly Deductions from Payroll,07/04/2021,0000466340,416.64,Revenue,ST CATHERINES HOSPICE PROMOTIONS LTD,0
South Ribble Borough Council,http://statistics.data.gov.uk/id/local-authority/30UE,Service Management & Support,Diesel Fuel,3132,17000 litres diesel @ 98.70 ppl into the feeder tank at ADDRESS REDACTED - Key for cabinet available from the main office on REDACTED,09/04/2021,0000466160,"16,777.03",Revenue,Standard Fuel Oils LtdMain,0
South Ribble Borough Council,http://statistics.data.gov.uk/id/local-authority/30UE,Service Management & Support,Diesel Fuel,3132,17000 litres diesel @ 97.49ppl into the feeder tank at ADDRESS REDACTED - key for cabinet available from main office on REDACTED,09/04/2021,0000466400,"15,454.40",Revenue,Standard Fuel Oils LtdMain,0
South Ribble Borough Council,http://statistics.data.gov.uk/id/local-authority/30UE,Service Management & Support,Gas Oil,3134,2000 litres gas oil @ 52.23 ppl into tank 2,09/04/2021,0000466401,"1,026.60",Revenue,Standard Fuel Oils LtdMain,0
South Ribble Borough Council,http://statistics.data.gov.uk/id/local-authority/30UE,Service Management & Support,Diesel Fuel,3132,17000 litres diesel @ 96.50ppl into the feeder tank at ADDRESS REDACTED - key for cabinet available from main office on REDACTED,23/04/2021,0000466796,"14,514.00",Revenue,Standard Fuel Oils LtdMain,0
South Ribble Borough Council,http://statistics.data.gov.uk/id/local-authority/30UE,Service Management & Support,Diesel Fuel,3132,16000 litres diesel @ 97.67ppl into the feeder tank at ADDRESS REDACTED - key for cabinet available from main office on REDACTED,30/04/2021,0000467045,"15,788.36",Revenue,Standard Fuel Oils LtdMain,0
South Ribble Borough Council,http://statistics.data.gov.uk/id/local-authority/30UE,Capital,Capital Grant,C570,DFG WORK TO SUPPLY AND INSTALL A STAIRLIFT  AT ADDRESS REDACTED AS PER QUOTE SUPPLIED OF 3291.00,28/04/2021,0000467014,"3,291.00",Revenue,Stannah Lift Services Ltd,0
South Ribble Borough Council,http://statistics.data.gov.uk/id/local-authority/30UE,Democratic Represent and  Mgnt,Operational Equip & Tools,4010,Please provide 70 x Deflecto Tent Sign Holder A4 Clear ref DF48601 @ 4.37 Size 297 x 111 x 96 mm,07/04/2021,0000465280,305.90,Revenue,STATIONERY UK LTD,0
South Ribble Borough Council,http://statistics.data.gov.uk/id/local-authority/30UE,Recreation & Sport,Reactive Repair & Maintenance,2020,Rental fees for the anti vandal canteen unit located at Penwortham Holme ref 523-037516,09/04/2021,0000466508,271.40,Revenue,Sunbelt Rentals UK Ltd,0
South Ribble Borough Council,http://statistics.data.gov.uk/id/local-authority/30UE,Development Control,Professional Fees,4510,Ecology advice provided on planning applications. For South Ribble this year (financial year 20-21) we have provided advice on 95 applications,16/04/2021,0000466193,"4,418.00",Revenue,TAMESIDE METROPOLITAN BOROUGH COUNCIL,0
South Ribble Borough Council,http://statistics.data.gov.uk/id/local-authority/30UE,Central Support Services,Materials General,4040,1 x TEM2072 Sensor VO65 KRE JFC16113,21/04/2021,0000466714,31.06,Revenue,Taylor Enginering & Fabrications Ltd,0
South Ribble Borough Council,http://statistics.data.gov.uk/id/local-authority/30UE,Central Support Services,Materials General,4040,1 x TEL2277 RPD Sensor VA19 KOX JFC16391,21/04/2021,0000466714,259.83,Revenue,Taylor Enginering & Fabrications Ltd,0
South Ribble Borough Council,http://statistics.data.gov.uk/id/local-authority/30UE,Suspended Items,Professional Fees,4510,Fee for hosting the Leyland virtual consultation platform as agreed with NAMES REDACTED,23/04/2021,0000466963,"3,600.00",Revenue,Tetra Tech Environment Planning Transport Ltd,0
South Ribble Borough Council,http://statistics.data.gov.uk/id/local-authority/30UE,Open Spaces,Professional Fees,4510,Carr Wood bee hive management as per NAMES REDACTED,07/04/2021,0000466355,450.00,Revenue,The Bee centre,0
South Ribble Borough Council,http://statistics.data.gov.uk/id/local-authority/30UE,Central Support Services,Occupational Health,1408,6 SESSIONS OF THERAPY FOR NAME REDACTED,28/04/2021,0000467013,360.00,Revenue,THE THERAPY COMPANY,0
South Ribble Borough Council,http://statistics.data.gov.uk/id/local-authority/30UE,Central Support Services,Occupational Health,1408,6 X SESSIONS OF THERAPY FOR NAME REDACTED,28/04/2021,0000467013,360.00,Revenue,THE THERAPY COMPANY,0
South Ribble Borough Council,http://statistics.data.gov.uk/id/local-authority/30UE,Central Support Services,Reference Books,4142,schofields,28/04/2021,0000466891,144.00,Revenue,THOMSON REUTERS,0
South Ribble Borough Council,http://statistics.data.gov.uk/id/local-authority/30UE,Central Support Services,Reference Books,4142,non vat,28/04/2021,0000466891,144.00,Revenue,THOMSON REUTERS,0
South Ribble Borough Council,http://statistics.data.gov.uk/id/local-authority/30UE,Central Support Services,Reference Books,4142,practical lease R72,28/04/2021,0000466944,628.00,Revenue,THOMSON REUTERS,0
South Ribble Borough Council,http://statistics.data.gov.uk/id/local-authority/30UE,Open Spaces,Electricity,2303,1/3/21 to 31/3/21,09/04/2021,0000466403,490.65,Revenue,Total Gas & power Ltd,0
South Ribble Borough Council,http://statistics.data.gov.uk/id/local-authority/30UE,Open Spaces,Climate Change Levy,2307,ccl,09/04/2021,0000466403,21.01,Revenue,Total Gas & power Ltd,0
South Ribble Borough Council,http://statistics.data.gov.uk/id/local-authority/30UE,Central Support Services,Electricity,2303,1/3/21 to 31/3/21,14/04/2021,0000466586,"3,168.89",Revenue,Total Gas & power Ltd,0
South Ribble Borough Council,http://statistics.data.gov.uk/id/local-authority/30UE,Central Support Services,Climate Change Levy,2307,ccl,14/04/2021,0000466586,170.49,Revenue,Total Gas & power Ltd,0
South Ribble Borough Council,http://statistics.data.gov.uk/id/local-authority/30UE,Open Spaces,Electricity,2303,1/3/21 to 31/3/21,14/04/2021,0000466587,357.45,Revenue,Total Gas & power Ltd,0
South Ribble Borough Council,http://statistics.data.gov.uk/id/local-authority/30UE,Open Spaces,Climate Change Levy,2307,ccl,14/04/2021,0000466587,17.52,Revenue,Total Gas & power Ltd,0
South Ribble Borough Council,http://statistics.data.gov.uk/id/local-authority/30UE,Economic Development,Electricity,2303,1/3/21 to 31/3/21,14/04/2021,0000466589,806.93,Revenue,Total Gas & power Ltd,0
South Ribble Borough Council,http://statistics.data.gov.uk/id/local-authority/30UE,Economic Development,Climate Change Levy,2307,CCL,14/04/2021,0000466589,36.26,Revenue,Total Gas & power Ltd,0
South Ribble Borough Council,http://statistics.data.gov.uk/id/local-authority/30UE,Central Support Services,Electricity,2303,1/3/21 to 31/3/21,14/04/2021,0000466591,"2,731.22",Revenue,Total Gas & power Ltd,0
South Ribble Borough Council,http://statistics.data.gov.uk/id/local-authority/30UE,Central Support Services,Climate Change Levy,2307,ccl,14/04/2021,0000466591,152.62,Revenue,Total Gas & power Ltd,0
South Ribble Borough Council,http://statistics.data.gov.uk/id/local-authority/30UE,Central Support Services,Gas,2304,28/2/21 to 31/3/21,14/04/2021,0000466674,"2,174.27",Revenue,Total Gas & power Ltd,0
South Ribble Borough Council,http://statistics.data.gov.uk/id/local-authority/30UE,Central Support Services,Climate Change Levy,2307,ccl,14/04/2021,0000466674,262.55,Revenue,Total Gas & power Ltd,0
South Ribble Borough Council,http://statistics.data.gov.uk/id/local-authority/30UE,Central Support Services,Maintenance & Repair,4013,2021 / 2022 contract number 05684 for the maintenance of the refrigeration units at the Civic Centre,28/04/2021,0000467011,"1,260.00",Revenue,UNIVERSAL COOLING LTD,0
South Ribble Borough Council,http://statistics.data.gov.uk/id/local-authority/30UE,Central Support Services,Reactive Repair & Maintenance,2020,"2020 / 2021 annual contract for quarterly servicing of all No water coolers located at the Civic Centre, PR25 1DH  VALUE_ONLY  1820.00",30/04/2021,0000465815,291.98,Revenue,VENDING ENTERPRISES,0
South Ribble Borough Council,http://statistics.data.gov.uk/id/local-authority/30UE,Central Support Services,Reactive Repair & Maintenance,2020,cancelled in full with credit 3484,28/04/2021,0000466333,"1,071.98",Revenue,VENDING ENTERPRISES,0
South Ribble Borough Council,http://statistics.data.gov.uk/id/local-authority/30UE,Democratic Represent and  Mgnt,Rental,4012,2021 / 2022 annual contract for the monthly rental of hot drinks machines at the civic centre including environmental charge.,23/04/2021,0000466881,291.98,Revenue,VENDING ENTERPRISES,0
South Ribble Borough Council,http://statistics.data.gov.uk/id/local-authority/30UE,Central Support Services,Reactive Repair & Maintenance,2020,"Annual Contract 2021/2022 for the sanitization of  water coolers x  7 machines at Civic Centre West Paddock Leyland, PR25 1DH",21/04/2021,0000466882,780.00,Revenue,VENDING ENTERPRISES,0
South Ribble Borough Council,http://statistics.data.gov.uk/id/local-authority/30UE,Central Support Services,Telecomms- land lines,4269,26 Mar 2021,07/04/2021,0000466298,"3,907.21",Revenue,VODAFONE RE:CABLE & WIRELESS UK,0
South Ribble Borough Council,http://statistics.data.gov.uk/id/local-authority/30UE,Central Support Services,Network and Security,4247,01 Apr 2021,09/04/2021,0000466518,"2,252.86",Revenue,VODAFONE RE:CABLE & WIRELESS UK,0
South Ribble Borough Council,http://statistics.data.gov.uk/id/local-authority/30UE,Central Support Services,Network and Security,4247,1 Apr 2021,09/04/2021,0000466520,"2,404.20",Revenue,VODAFONE RE:CABLE & WIRELESS UK,0
South Ribble Borough Council,http://statistics.data.gov.uk/id/local-authority/30UE,Open Spaces,Water Charges(Metered),2511,worden park,30/04/2021,0000462350,"2,850.15",Revenue,WATER PLUS,0
South Ribble Borough Council,http://statistics.data.gov.uk/id/local-authority/30UE,Open Spaces,Water Rates,2412,1/4/21 to 31/3/22,30/04/2021,0000465083,352.33,Revenue,WATER PLUS,0
South Ribble Borough Council,http://statistics.data.gov.uk/id/local-authority/30UE,Open Spaces,Water Charges(Metered),2511,14/02/2015 - 13/05/2015,30/04/2021,0000465122,"2,206.49",Revenue,WATER PLUS,0
South Ribble Borough Council,http://statistics.data.gov.uk/id/local-authority/30UE,Open Spaces,Water Charges(Metered),2511,14/02/2015 - 13/05/2015,30/04/2021,0000465123,"2,206.49",Revenue,WATER PLUS,0
South Ribble Borough Council,http://statistics.data.gov.uk/id/local-authority/30UE,Open Spaces,Water Charges(Metered),2511,14/02/2015 - 13/05/2015,30/04/2021,0000465124,"2,183.97",Revenue,WATER PLUS,0
South Ribble Borough Council,http://statistics.data.gov.uk/id/local-authority/30UE,Open Spaces,Water Charges(Metered),2511,14/02/2017 - 13/05/2017,30/04/2021,0000465125,"1,055.69",Revenue,WATER PLUS,0
South Ribble Borough Council,http://statistics.data.gov.uk/id/local-authority/30UE,Economic Development,Water Charges(Metered),2511,9/11/20 to 28/2/21,30/04/2021,0000465832,650.27,Revenue,WATER PLUS,0
South Ribble Borough Council,http://statistics.data.gov.uk/id/local-authority/30UE,Surplus or Deficit on Trading,Water Charges(Metered),2511,16/11/20 to 7/3/21,30/04/2021,0000465912,485.82,Revenue,WATER PLUS,0
South Ribble Borough Council,http://statistics.data.gov.uk/id/local-authority/30UE,Open Spaces,Water Charges(Metered),2511,20/11/20 to 12/3/21,30/04/2021,0000466725,"4,705.28",Revenue,WATER PLUS,0
South Ribble Borough Council,http://statistics.data.gov.uk/id/local-authority/30UE,Central Support Services,Water Charges(Metered),2511,13 February 2020 - 15 November 2020,30/04/2021,0000466919,"3,061.87",Revenue,WATER PLUS,0
South Ribble Borough Council,http://statistics.data.gov.uk/id/local-authority/30UE,Surplus or Deficit on Trading,Water Charges(Metered),2511,26/12 20 to 14/4/21,30/04/2021,0000467069,285.11,Revenue,WATER PLUS,0
South Ribble Borough Council,http://statistics.data.gov.uk/id/local-authority/30UE,Surplus or Deficit on Trading,Water Charges(Metered),2511,1/4/21 to 31/3/22,30/04/2021,0000467193,"1,782.55",Revenue,WATER PLUS,0
South Ribble Borough Council,http://statistics.data.gov.uk/id/local-authority/30UE,Economic Development,Water Charges(Metered),2511,14/4/21 to 31/3/22,30/04/2021,0000467194,"1,782.55",Revenue,WATER PLUS,0
South Ribble Borough Council,http://statistics.data.gov.uk/id/local-authority/30UE,Parking Services,Water Charges(Metered),2511,1/4/21 to 31/3/22,30/04/2021,0000467195,"3,728.44",Revenue,WATER PLUS,0
South Ribble Borough Council,http://statistics.data.gov.uk/id/local-authority/30UE,Central Support Services,Network and Security,4247,"Hardware/Configuration/Install 1073, Fixed 2 month contract for Wifi  987, Cloud Key Unify Access Point Cat 5 487",21/04/2021,0000466813,"2,122.50",Revenue,Wave Internet,0
South Ribble Borough Council,http://statistics.data.gov.uk/id/local-authority/30UE,Central Support Services,Legal,4821,PROFESSIONAL SERVICES WITH REGARD TO HOOLE HALL FUNDING AGREEMENTS 27 JANUARY 2021 - 12 MARCH 2021,07/04/2021,0000466357,833.60,Revenue,WEIGHTMANS LLP,0
South Ribble Borough Council,http://statistics.data.gov.uk/id/local-authority/30UE,Capital,Cap Contract Payment,C230,Tree works at Worden Park Arboretum,30/04/2021,0000466920,"4,935.00",Revenue,WESTFIELD TREE SERVICES LTD,0
South Ribble Borough Council,http://statistics.data.gov.uk/id/local-authority/30UE,Capital,Cap Contract Payment,C230,"For an Architectural & Principal Designer Services (Stages 4-7) Worden Hall as per tender as per NAME REDACTED Request Cost - 50,310",30/04/2021,0000467046,"8,401.60",Revenue,Wilson Mason LLP,0
South Ribble Borough Council,http://statistics.data.gov.uk/id/local-authority/30UE,Capital,Cap Contract Payment,C230,"For an Architectural & Principal Designer Services (Stages 4-7) Worden Hall as per tender as per NAME REDACTED Request Cost - 50,310",30/04/2021,0000467048,"1,602.00",Revenue,Wilson Mason LLP,0
South Ribble Borough Council,http://statistics.data.gov.uk/id/local-authority/30UE,Development Control,Professional Fees,4510,Highways consultancy work re Tesco Cop Lane Penwortham,16/04/2021,0000466736,"1,250.00",Revenue,WSP UK Ltd,0
